{"text_format":"1","workbook":"xlsx","n_sheets":14,"sheets":["Paarungen","Formular","Paarung 1 | Spiel 4","Paarung 1 | Spiel 3","Paarung 1 | Spiel 1","Paarung 1 | Spiel 2","Paarung 2 | Spiel 4","Paarung 2 | Spiel 3","Paarung 2 | Spiel 1","Paarung 2 | Spiel 2","Paarung 3 | Spiel 4","Paarung 3 | Spiel 3","Paarung 3 | Spiel 1","Paarung 3 | Spiel 2"],"not_rendered":{"charts":0,"images":4,"macros":1,"external_links":0,"defined_names":0,"comments":0,"pivot_tables":0},"unopened":[],"bounds":{"document_bytes":16777216,"sheet_cells":100000,"rows_first":2000,"rows_last":500,"rows_between":2000,"halvings":0,"cell_chars":16384,"cell_head_chars":4096},"cells_cut":0,"cells_raw":0,"read":"whole","date_system":"1900"}

{"sheet":"Paarungen","index":0,"n_rows":5,"n_cols":4,"rows_kept":5,"cut":false,"hidden":false,"merged":[]}
["Paarung Nr.","Verein 1","Verein 2","Verein Schiedsrichter "]
[{"$f":"IF(ISBLANK($D2),\"\",1)","v":1},"Fun Point Gerlingen 2","Ulmer SC 3","Squash Devils 7"]
[{"$f":"IF(ISBLANK($D3),\"\",2)","v":2},"Ulmer SC 3","Squash Devils 7","Fun Point Gerlingen 2"]
[{"$f":"IF(ISBLANK($D4),\"\",3)","v":3},"Fun Point Gerlingen 2","Squash Devils 7","Ulmer SC 3"]
[{"$f":"IF(ISBLANK($D5),\"\",4)","v":""}]

{"sheet":"Formular","index":1,"n_rows":55,"n_cols":57,"rows_kept":55,"cut":false,"hidden":false,"merged":[[40,56,41,60],[42,56,42,60],[43,56,43,60],[44,56,44,60],[51,56,51,60],[54,56,55,60],[45,56,45,60],[46,56,47,60],[48,56,49,60],[50,56,50,60],[52,56,52,60],[53,56,53,60],[9,46,10,48],[11,50,12,51],[9,50,10,51],[3,1,4,34],[1,1,2,27],[3,50,4,51],[5,50,6,51],[7,50,8,51],[3,46,4,48],[5,46,6,48],[7,46,8,48],[18,56,18,60],[19,56,19,60],[1,49,2,52],[20,56,20,60],[16,56,17,60],[13,16,14,30],[38,56,39,60],[36,56,36,60],[37,56,37,60],[11,46,12,48],[32,56,33,60],[34,56,34,60],[35,56,35,60],[24,56,25,60],[21,56,21,60],[22,56,23,60],[30,56,31,60],[26,56,26,60],[27,56,27,60],[28,56,28,60],[29,56,29,60],[13,31,14,43],[50,0,51,0],[52,0,53,0],[13,49,14,52],[1,53,2,55],[7,31,10,34],[7,16,8,30],[9,16,10,30],[13,12,14,13],[12,14,12,15],[26,0,27,0],[28,0,29,0],[34,0,35,0],[36,0,37,0],[42,0,43,0],[44,0,45,0],[7,0,8,0],[7,1,8,15],[9,1,10,15],[18,1,19,8],[20,1,21,8],[9,0,10,0],[18,0,19,0],[20,0,21,0],[12,12,12,13],[26,1,27,8],[50,1,51,8],[52,1,53,8],[28,1,29,8],[34,1,35,8],[36,1,37,8],[42,1,43,8],[44,1,45,8]]}
[]
[null,"Schiedsrichterformular",null,null,null,null,null,null,null,null,null,null,null,null,null,null,null,null,null,null,null,null,null,null,null,null,null,null,null,null,null,null,null,null,null,null,null,null,null,null,null,null,null,null,null,null,null,null,null,"Punkte",null,null,null,"Beginn\nUhrzeit"]
[]
[null,{"$f":"IF(Q8=\"\",\"\",\" Position \" & M14 & \":     \" & Q8 & \"   -   \" & Q10)","v":""},null,null,null,null,null,null,null,null,null,null,null,null,null,null,null,null,null,null,null,null,null,null,null,null,null,null,null,null,null,null,null,null,null,null,null,null,null,null,null,null,null,null,null,null,"1. Satz",null,null,null,":"]
[]
[null,null,null,null,null,null,null,null,null,null,null,null,null,null,null,null,null,null,null,null,null,null,null,null,null,null,null,null,null,null,null,null,null,null,null,null,null,null,null,null,null,null,null,null,null,null,"2. Satz",null,null,null,":"]
[null,"Spielername",null,null,null,null,null,null,null,null,null,null,null,null,null,null,"Vereinsname",null,null,null,null,null,null,null,null,null,null,null,null,null,null,"Endergebnis"]
["A",null,null,null,null,null,null,null,null,null,null,null,null,null,null,null,null,null,null,null,null,null,null,null,null,null,null,null,null,null,null,":",null,null,null,null,null,null,null,null,null,null,null,null,null,null,"3. Satz",null,null,null,":"]
[]
["B",null,null,null,null,null,null,null,null,null,null,null,null,null,null,null,null,null,null,null,null,null,null,null,null,null,null,null,null,null,null,null,null,null,null,null,null,null,null,null,null,null,null,null,null,null,"4. Satz",null,null,null,":"]
[]
[null,null,null,null,null,null,null,null,null,null,null,null,null,null,null,null,null,null,null,null,null,null,null,null,null,null,null,null,null,null,null,null,null,null,null,null,null,null,null,null,null,null,null,null,null,null,"5. Satz",null,null,null,":"]
[null,"Datum",null,null,null,null,null,null,null,null,null,null,"Position",null,"Court",null,"Schiedsrichter - Vereinsname",null,null,null,null,null,null,null,null,null,null,null,null,null,null,"Schiedsrichter (Position - Name)"]
[null,null,null,null,null,null,null,null,null,null,null,null,null,null,null,null,null,null,null,null,null,null,null,null,null,null,null,null,null,null,null,null,null,null,null,null,null,null,null,null,null,null,null,null,null,null,null,null,null,"Spielende\nUhrzeit"]
[]
[]
[null,null,null,null,null,null,null,null,null,null,null,null,null,null,null,null,null,null,null,null,null,null,null,null,null,null,null,null,null,null,null,null,null,null,null,null,null,null,null,null,null,null,null,null,null,null,null,null,null,null,null,null,null,null,null,null,"Let=L / Fehler=x"]
[]
["A",{"$f":"IF($B$8=\"\",\"\",$B$8)","v":""},null,null,null,null,null,null,null,null,null,null,null,null,null,null,null,null,null,null,null,null,null,null,null,null,null,null,null,null,null,null,null,null,null,null,null,null,null,null,null,null,null,null,null,null,null,null,null,null,null,null,null,null,null,null,"Aufschlag L/R"]
[null,null,null,null,null,null,null,null,null,null,null,null,null,null,null,null,null,null,null,null,null,null,null,null,null,null,null,null,null,null,null,null,null,null,null,null,null,null,null,null,null,null,null,null,null,null,null,null,null,null,null,null,null,null,null,null,"Punkte"]
["B",{"$f":"IF($B$10=\"\",\"\",$B$10)","v":""},null,null,null,null,null,null,null,null,null,null,null,null,null,null,null,null,null,null,null,null,null,null,null,null,null,null,null,null,null,null,null,null,null,null,null,null,null,null,null,null,null,null,null,null,null,null,null,null,null,null,null,null,null,null,"Punkte"]
[null,null,null,null,null,null,null,null,null,null,null,null,null,null,null,null,null,null,null,null,null,null,null,null,null,null,null,null,null,null,null,null,null,null,null,null,null,null,null,null,null,null,null,null,null,null,null,null,null,null,null,null,null,null,null,null,"Aufschlag L/R"]
[null,null,null,null,null,null,null,null,null,null,null,null,null,null,null,null,null,null,null,null,null,null,null,null,null,null,null,null,null,null,null,null,null,null,null,null,null,null,null,null,null,null,null,null,null,null,null,null,null,null,null,null,null,null,null,null,"Let=L / Fehler=x"]
[]
[null,null,null,null,null,null,null,null,null,null,null,null,null,null,null,null,null,null,null,null,null,null,null,null,null,null,null,null,null,null,null,null,null,null,null,null,null,null,null,null,null,null,null,null,null,null,null,null,null,null,null,null,null,null,null,null,"Let=L / Fehler=x"]
[]
["A",{"$f":"IF($B$8=\"\",\"\",$B$8)","v":""},null,null,null,null,null,null,null,null,null,null,null,null,null,null,null,null,null,null,null,null,null,null,null,null,null,null,null,null,null,null,null,null,null,null,null,null,null,null,null,null,null,null,null,null,null,null,null,null,null,null,null,null,null,null,"Aufschlag L/R"]
[null,null,null,null,null,null,null,null,null,null,null,null,null,null,null,null,null,null,null,null,null,null,null,null,null,null,null,null,null,null,null,null,null,null,null,null,null,null,null,null,null,null,null,null,null,null,null,null,null,null,null,null,null,null,null,null,"Punkte"]
["B",{"$f":"IF($B$10=\"\",\"\",$B$10)","v":""},null,null,null,null,null,null,null,null,null,null,null,null,null,null,null,null,null,null,null,null,null,null,null,null,null,null,null,null,null,null,null,null,null,null,null,null,null,null,null,null,null,null,null,null,null,null,null,null,null,null,null,null,null,null,"Punkte"]
[null,null,null,null,null,null,null,null,null,null,null,null,null,null,null,null,null,null,null,null,null,null,null,null,null,null,null,null,null,null,null,null,null,null,null,null,null,null,null,null,null,null,null,null,null,null,null,null,null,null,null,null,null,null,null,null,"Aufschlag L/R"]
[null,null,null,null,null,null,null,null,null,null,null,null,null,null,null,null,null,null,null,null,null,null,null,null,null,null,null,null,null,null,null,null,null,null,null,null,null,null,null,null,null,null,null,null,null,null,null,null,null,null,null,null,null,null,null,null,"Let=L / Fehler=x"]
[]
[null,null,null,null,null,null,null,null,null,null,null,null,null,null,null,null,null,null,null,null,null,null,null,null,null,null,null,null,null,null,null,null,null,null,null,null,null,null,null,null,null,null,null,null,null,null,null,null,null,null,null,null,null,null,null,null,"Let=L / Fehler=x"]
[]
["A",{"$f":"IF($B$8=\"\",\"\",$B$8)","v":""},null,null,null,null,null,null,null,null,null,null,null,null,null,null,null,null,null,null,null,null,null,null,null,null,null,null,null,null,null,null,null,null,null,null,null,null,null,null,null,null,null,null,null,null,null,null,null,null,null,null,null,null,null,null,"Aufschlag L/R"]
[null,null,null,null,null,null,null,null,null,null,null,null,null,null,null,null,null,null,null,null,null,null,null,null,null,null,null,null,null,null,null,null,null,null,null,null,null,null,null,null,null,null,null,null,null,null,null,null,null,null,null,null,null,null,null,null,"Punkte"]
["B",{"$f":"IF($B$10=\"\",\"\",$B$10)","v":""},null,null,null,null,null,null,null,null,null,null,null,null,null,null,null,null,null,null,null,null,null,null,null,null,null,null,null,null,null,null,null,null,null,null,null,null,null,null,null,null,null,null,null,null,null,null,null,null,null,null,null,null,null,null,"Punkte"]
[null,null,null,null,null,null,null,null,null,null,null,null,null,null,null,null,null,null,null,null,null,null,null,null,null,null,null,null,null,null,null,null,null,null,null,null,null,null,null,null,null,null,null,null,null,null,null,null,null,null,null,null,null,null,null,null,"Aufschlag L/R"]
[null,null,null,null,null,null,null,null,null,null,null,null,null,null,null,null,null,null,null,null,null,null,null,null,null,null,null,null,null,null,null,null,null,null,null,null,null,null,null,null,null,null,null,null,null,null,null,null,null,null,null,null,null,null,null,null,"Let=L / Fehler=x"]
[]
[null,null,null,null,null,null,null,null,null,null,null,null,null,null,null,null,null,null,null,null,null,null,null,null,null,null,null,null,null,null,null,null,null,null,null,null,null,null,null,null,null,null,null,null,null,null,null,null,null,null,null,null,null,null,null,null,"Let=L / Fehler=x"]
[]
["A",{"$f":"IF($B$8=\"\",\"\",$B$8)","v":""},null,null,null,null,null,null,null,null,null,null,null,null,null,null,null,null,null,null,null,null,null,null,null,null,null,null,null,null,null,null,null,null,null,null,null,null,null,null,null,null,null,null,null,null,null,null,null,null,null,null,null,null,null,null,"Aufschlag L/R"]
[null,null,null,null,null,null,null,null,null,null,null,null,null,null,null,null,null,null,null,null,null,null,null,null,null,null,null,null,null,null,null,null,null,null,null,null,null,null,null,null,null,null,null,null,null,null,null,null,null,null,null,null,null,null,null,null,"Punkte"]
["B",{"$f":"IF($B$10=\"\",\"\",$B$10)","v":""},null,null,null,null,null,null,null,null,null,null,null,null,null,null,null,null,null,null,null,null,null,null,null,null,null,null,null,null,null,null,null,null,null,null,null,null,null,null,null,null,null,null,null,null,null,null,null,null,null,null,null,null,null,null,"Punkte"]
[null,null,null,null,null,null,null,null,null,null,null,null,null,null,null,null,null,null,null,null,null,null,null,null,null,null,null,null,null,null,null,null,null,null,null,null,null,null,null,null,null,null,null,null,null,null,null,null,null,null,null,null,null,null,null,null,"Aufschlag L/R"]
[null,null,null,null,null,null,null,null,null,null,null,null,null,null,null,null,null,null,null,null,null,null,null,null,null,null,null,null,null,null,null,null,null,null,null,null,null,null,null,null,null,null,null,null,null,null,null,null,null,null,null,null,null,null,null,null,"Let=L / Fehler=x"]
[]
[null,null,null,null,null,null,null,null,null,null,null,null,null,null,null,null,null,null,null,null,null,null,null,null,null,null,null,null,null,null,null,null,null,null,null,null,null,null,null,null,null,null,null,null,null,null,null,null,null,null,null,null,null,null,null,null,"Let=L / Fehler=x"]
[]
["A",{"$f":"IF($B$8=\"\",\"\",$B$8)","v":""},null,null,null,null,null,null,null,null,null,null,null,null,null,null,null,null,null,null,null,null,null,null,null,null,null,null,null,null,null,null,null,null,null,null,null,null,null,null,null,null,null,null,null,null,null,null,null,null,null,null,null,null,null,null,"Aufschlag L/R"]
[null,null,null,null,null,null,null,null,null,null,null,null,null,null,null,null,null,null,null,null,null,null,null,null,null,null,null,null,null,null,null,null,null,null,null,null,null,null,null,null,null,null,null,null,null,null,null,null,null,null,null,null,null,null,null,null,"Punkte"]
["B",{"$f":"IF($B$10=\"\",\"\",$B$10)","v":""},null,null,null,null,null,null,null,null,null,null,null,null,null,null,null,null,null,null,null,null,null,null,null,null,null,null,null,null,null,null,null,null,null,null,null,null,null,null,null,null,null,null,null,null,null,null,null,null,null,null,null,null,null,null,"Punkte"]
[null,null,null,null,null,null,null,null,null,null,null,null,null,null,null,null,null,null,null,null,null,null,null,null,null,null,null,null,null,null,null,null,null,null,null,null,null,null,null,null,null,null,null,null,null,null,null,null,null,null,null,null,null,null,null,null,"Aufschlag L/R"]
[null,null,null,null,null,null,null,null,null,null,null,null,null,null,null,null,null,null,null,null,null,null,null,null,null,null,null,null,null,null,null,null,null,null,null,null,null,null,null,null,null,null,null,null,null,null,null,null,null,null,null,null,null,null,null,null,"Let=L / Fehler=x"]

{"sheet":"Paarung 1 | Spiel 4","index":2,"n_rows":55,"n_cols":57,"rows_kept":55,"cut":false,"hidden":false,"merged":[[1,1,2,27],[1,49,2,52],[1,53,2,55],[3,1,4,34],[3,46,4,48],[3,50,4,51],[5,46,6,48],[5,50,6,51],[7,0,8,0],[7,1,8,15],[7,16,8,30],[7,31,10,34],[7,46,8,48],[7,50,8,51],[9,0,10,0],[9,1,10,15],[18,0,19,0],[18,1,19,8],[18,56,18,60],[19,56,19,60],[9,16,10,30],[9,46,10,48],[9,50,10,51],[11,46,12,48],[11,50,12,51],[12,12,12,13],[12,14,12,15],[24,56,25,60],[13,12,14,13],[13,16,14,30],[13,31,14,43],[13,49,14,52],[16,56,17,60],[20,0,21,0],[20,1,21,8],[20,56,20,60],[21,56,21,60],[22,56,23,60],[26,0,27,0],[26,1,27,8],[26,56,26,60],[27,56,27,60],[28,0,29,0],[28,1,29,8],[28,56,28,60],[29,56,29,60],[40,56,41,60],[30,56,31,60],[32,56,33,60],[34,0,35,0],[34,1,35,8],[34,56,34,60],[35,56,35,60],[36,0,37,0],[36,1,37,8],[36,56,36,60],[37,56,37,60],[38,56,39,60],[42,0,43,0],[42,1,43,8],[42,56,42,60],[43,56,43,60],[44,0,45,0],[44,1,45,8],[44,56,44,60],[45,56,45,60],[46,56,47,60],[48,56,49,60],[50,0,51,0],[50,1,51,8],[50,56,50,60],[51,56,51,60],[52,0,53,0],[52,1,53,8],[52,56,52,60],[53,56,53,60],[54,56,55,60]]}
[]
[null,"Schiedsrichterformular",null,null,null,null,null,null,null,null,null,null,null,null,null,null,null,null,null,null,null,null,null,null,null,null,null,null,null,null,null,null,null,null,null,null,null,null,null,null,null,null,null,null,null,null,null,null,null,"Punkte",null,null,null,"Beginn\nUhrzeit"]
[]
[null,{"$f":"IF(Q8=\"\",\"\",\" Position \" & M14 & \":     \" & Q8 & \"   -   \" & Q10)","v":" Position 4:     Fun Point Gerlingen 2   -   Ulmer SC 3"},null,null,null,null,null,null,null,null,null,null,null,null,null,null,null,null,null,null,null,null,null,null,null,null,null,null,null,null,null,null,null,null,null,null,null,null,null,null,null,null,null,null,null,null,"1. Satz",null,null,null,":"]
[]
[null,null,null,null,null,null,null,null,null,null,null,null,null,null,null,null,null,null,null,null,null,null,null,null,null,null,null,null,null,null,null,null,null,null,null,null,null,null,null,null,null,null,null,null,null,null,"2. Satz",null,null,null,":"]
[null,"Spielername",null,null,null,null,null,null,null,null,null,null,null,null,null,null,"Vereinsname",null,null,null,null,null,null,null,null,null,null,null,null,null,null,"Endergebnis"]
["A","Axel Nieder",null,null,null,null,null,null,null,null,null,null,null,null,null,null,"Fun Point Gerlingen 2",null,null,null,null,null,null,null,null,null,null,null,null,null,null,":",null,null,null,null,null,null,null,null,null,null,null,null,null,null,"3. Satz",null,null,null,":"]
[]
["B",null,null,null,null,null,null,null,null,null,null,null,null,null,null,null,"Ulmer SC 3",null,null,null,null,null,null,null,null,null,null,null,null,null,null,null,null,null,null,null,null,null,null,null,null,null,null,null,null,null,"4. Satz",null,null,null,":"]
[]
[null,null,null,null,null,null,null,null,null,null,null,null,null,null,null,null,null,null,null,null,null,null,null,null,null,null,null,null,null,null,null,null,null,null,null,null,null,null,null,null,null,null,null,null,null,null,"5. Satz",null,null,null,":"]
[null,"Datum",null,null,null,null,null,null,null,null,null,null,"Position",null,"Court",null,"Schiedsrichter - Vereinsname",null,null,null,null,null,null,null,null,null,null,null,null,null,null,"Schiedsrichter (Position - Name)"]
[null,null,null,null,null,null,null,null,null,null,null,null,4,null,null,null,"Squash Devils 7",null,null,null,null,null,null,null,null,null,null,null,null,null,null,"Pos. 4 - ",null,null,null,null,null,null,null,null,null,null,null,null,null,null,null,null,null,"Spielende\nUhrzeit"]
[]
[]
[null,null,null,null,null,null,null,null,null,null,null,null,null,null,null,null,null,null,null,null,null,null,null,null,null,null,null,null,null,null,null,null,null,null,null,null,null,null,null,null,null,null,null,null,null,null,null,null,null,null,null,null,null,null,null,null,"Let=L / Fehler=x"]
[]
["A",{"$f":"IF($B$8=\"\",\"\",$B$8)","v":"Axel Nieder"},null,null,null,null,null,null,null,null,null,null,null,null,null,null,null,null,null,null,null,null,null,null,null,null,null,null,null,null,null,null,null,null,null,null,null,null,null,null,null,null,null,null,null,null,null,null,null,null,null,null,null,null,null,null,"Aufschlag L/R"]
[null,null,null,null,null,null,null,null,null,null,null,null,null,null,null,null,null,null,null,null,null,null,null,null,null,null,null,null,null,null,null,null,null,null,null,null,null,null,null,null,null,null,null,null,null,null,null,null,null,null,null,null,null,null,null,null,"Punkte"]
["B",{"$f":"IF($B$10=\"\",\"\",$B$10)","v":""},null,null,null,null,null,null,null,null,null,null,null,null,null,null,null,null,null,null,null,null,null,null,null,null,null,null,null,null,null,null,null,null,null,null,null,null,null,null,null,null,null,null,null,null,null,null,null,null,null,null,null,null,null,null,"Punkte"]
[null,null,null,null,null,null,null,null,null,null,null,null,null,null,null,null,null,null,null,null,null,null,null,null,null,null,null,null,null,null,null,null,null,null,null,null,null,null,null,null,null,null,null,null,null,null,null,null,null,null,null,null,null,null,null,null,"Aufschlag L/R"]
[null,null,null,null,null,null,null,null,null,null,null,null,null,null,null,null,null,null,null,null,null,null,null,null,null,null,null,null,null,null,null,null,null,null,null,null,null,null,null,null,null,null,null,null,null,null,null,null,null,null,null,null,null,null,null,null,"Let=L / Fehler=x"]
[]
[null,null,null,null,null,null,null,null,null,null,null,null,null,null,null,null,null,null,null,null,null,null,null,null,null,null,null,null,null,null,null,null,null,null,null,null,null,null,null,null,null,null,null,null,null,null,null,null,null,null,null,null,null,null,null,null,"Let=L / Fehler=x"]
[]
["A",{"$f":"IF($B$8=\"\",\"\",$B$8)","v":"Axel Nieder"},null,null,null,null,null,null,null,null,null,null,null,null,null,null,null,null,null,null,null,null,null,null,null,null,null,null,null,null,null,null,null,null,null,null,null,null,null,null,null,null,null,null,null,null,null,null,null,null,null,null,null,null,null,null,"Aufschlag L/R"]
[null,null,null,null,null,null,null,null,null,null,null,null,null,null,null,null,null,null,null,null,null,null,null,null,null,null,null,null,null,null,null,null,null,null,null,null,null,null,null,null,null,null,null,null,null,null,null,null,null,null,null,null,null,null,null,null,"Punkte"]
["B",{"$f":"IF($B$10=\"\",\"\",$B$10)","v":""},null,null,null,null,null,null,null,null,null,null,null,null,null,null,null,null,null,null,null,null,null,null,null,null,null,null,null,null,null,null,null,null,null,null,null,null,null,null,null,null,null,null,null,null,null,null,null,null,null,null,null,null,null,null,"Punkte"]
[null,null,null,null,null,null,null,null,null,null,null,null,null,null,null,null,null,null,null,null,null,null,null,null,null,null,null,null,null,null,null,null,null,null,null,null,null,null,null,null,null,null,null,null,null,null,null,null,null,null,null,null,null,null,null,null,"Aufschlag L/R"]
[null,null,null,null,null,null,null,null,null,null,null,null,null,null,null,null,null,null,null,null,null,null,null,null,null,null,null,null,null,null,null,null,null,null,null,null,null,null,null,null,null,null,null,null,null,null,null,null,null,null,null,null,null,null,null,null,"Let=L / Fehler=x"]
[]
[null,null,null,null,null,null,null,null,null,null,null,null,null,null,null,null,null,null,null,null,null,null,null,null,null,null,null,null,null,null,null,null,null,null,null,null,null,null,null,null,null,null,null,null,null,null,null,null,null,null,null,null,null,null,null,null,"Let=L / Fehler=x"]
[]
["A",{"$f":"IF($B$8=\"\",\"\",$B$8)","v":"Axel Nieder"},null,null,null,null,null,null,null,null,null,null,null,null,null,null,null,null,null,null,null,null,null,null,null,null,null,null,null,null,null,null,null,null,null,null,null,null,null,null,null,null,null,null,null,null,null,null,null,null,null,null,null,null,null,null,"Aufschlag L/R"]
[null,null,null,null,null,null,null,null,null,null,null,null,null,null,null,null,null,null,null,null,null,null,null,null,null,null,null,null,null,null,null,null,null,null,null,null,null,null,null,null,null,null,null,null,null,null,null,null,null,null,null,null,null,null,null,null,"Punkte"]
["B",{"$f":"IF($B$10=\"\",\"\",$B$10)","v":""},null,null,null,null,null,null,null,null,null,null,null,null,null,null,null,null,null,null,null,null,null,null,null,null,null,null,null,null,null,null,null,null,null,null,null,null,null,null,null,null,null,null,null,null,null,null,null,null,null,null,null,null,null,null,"Punkte"]
[null,null,null,null,null,null,null,null,null,null,null,null,null,null,null,null,null,null,null,null,null,null,null,null,null,null,null,null,null,null,null,null,null,null,null,null,null,null,null,null,null,null,null,null,null,null,null,null,null,null,null,null,null,null,null,null,"Aufschlag L/R"]
[null,null,null,null,null,null,null,null,null,null,null,null,null,null,null,null,null,null,null,null,null,null,null,null,null,null,null,null,null,null,null,null,null,null,null,null,null,null,null,null,null,null,null,null,null,null,null,null,null,null,null,null,null,null,null,null,"Let=L / Fehler=x"]
[]
[null,null,null,null,null,null,null,null,null,null,null,null,null,null,null,null,null,null,null,null,null,null,null,null,null,null,null,null,null,null,null,null,null,null,null,null,null,null,null,null,null,null,null,null,null,null,null,null,null,null,null,null,null,null,null,null,"Let=L / Fehler=x"]
[]
["A",{"$f":"IF($B$8=\"\",\"\",$B$8)","v":"Axel Nieder"},null,null,null,null,null,null,null,null,null,null,null,null,null,null,null,null,null,null,null,null,null,null,null,null,null,null,null,null,null,null,null,null,null,null,null,null,null,null,null,null,null,null,null,null,null,null,null,null,null,null,null,null,null,null,"Aufschlag L/R"]
[null,null,null,null,null,null,null,null,null,null,null,null,null,null,null,null,null,null,null,null,null,null,null,null,null,null,null,null,null,null,null,null,null,null,null,null,null,null,null,null,null,null,null,null,null,null,null,null,null,null,null,null,null,null,null,null,"Punkte"]
["B",{"$f":"IF($B$10=\"\",\"\",$B$10)","v":""},null,null,null,null,null,null,null,null,null,null,null,null,null,null,null,null,null,null,null,null,null,null,null,null,null,null,null,null,null,null,null,null,null,null,null,null,null,null,null,null,null,null,null,null,null,null,null,null,null,null,null,null,null,null,"Punkte"]
[null,null,null,null,null,null,null,null,null,null,null,null,null,null,null,null,null,null,null,null,null,null,null,null,null,null,null,null,null,null,null,null,null,null,null,null,null,null,null,null,null,null,null,null,null,null,null,null,null,null,null,null,null,null,null,null,"Aufschlag L/R"]
[null,null,null,null,null,null,null,null,null,null,null,null,null,null,null,null,null,null,null,null,null,null,null,null,null,null,null,null,null,null,null,null,null,null,null,null,null,null,null,null,null,null,null,null,null,null,null,null,null,null,null,null,null,null,null,null,"Let=L / Fehler=x"]
[]
[null,null,null,null,null,null,null,null,null,null,null,null,null,null,null,null,null,null,null,null,null,null,null,null,null,null,null,null,null,null,null,null,null,null,null,null,null,null,null,null,null,null,null,null,null,null,null,null,null,null,null,null,null,null,null,null,"Let=L / Fehler=x"]
[]
["A",{"$f":"IF($B$8=\"\",\"\",$B$8)","v":"Axel Nieder"},null,null,null,null,null,null,null,null,null,null,null,null,null,null,null,null,null,null,null,null,null,null,null,null,null,null,null,null,null,null,null,null,null,null,null,null,null,null,null,null,null,null,null,null,null,null,null,null,null,null,null,null,null,null,"Aufschlag L/R"]
[null,null,null,null,null,null,null,null,null,null,null,null,null,null,null,null,null,null,null,null,null,null,null,null,null,null,null,null,null,null,null,null,null,null,null,null,null,null,null,null,null,null,null,null,null,null,null,null,null,null,null,null,null,null,null,null,"Punkte"]
["B",{"$f":"IF($B$10=\"\",\"\",$B$10)","v":""},null,null,null,null,null,null,null,null,null,null,null,null,null,null,null,null,null,null,null,null,null,null,null,null,null,null,null,null,null,null,null,null,null,null,null,null,null,null,null,null,null,null,null,null,null,null,null,null,null,null,null,null,null,null,"Punkte"]
[null,null,null,null,null,null,null,null,null,null,null,null,null,null,null,null,null,null,null,null,null,null,null,null,null,null,null,null,null,null,null,null,null,null,null,null,null,null,null,null,null,null,null,null,null,null,null,null,null,null,null,null,null,null,null,null,"Aufschlag L/R"]
[null,null,null,null,null,null,null,null,null,null,null,null,null,null,null,null,null,null,null,null,null,null,null,null,null,null,null,null,null,null,null,null,null,null,null,null,null,null,null,null,null,null,null,null,null,null,null,null,null,null,null,null,null,null,null,null,"Let=L / Fehler=x"]

{"sheet":"Paarung 1 | Spiel 3","index":3,"n_rows":55,"n_cols":57,"rows_kept":55,"cut":false,"hidden":false,"merged":[[1,1,2,27],[1,49,2,52],[1,53,2,55],[3,1,4,34],[3,46,4,48],[3,50,4,51],[5,46,6,48],[5,50,6,51],[7,0,8,0],[7,1,8,15],[7,16,8,30],[7,31,10,34],[7,46,8,48],[7,50,8,51],[9,0,10,0],[9,1,10,15],[18,0,19,0],[18,1,19,8],[18,56,18,60],[19,56,19,60],[9,16,10,30],[9,46,10,48],[9,50,10,51],[11,46,12,48],[11,50,12,51],[12,12,12,13],[12,14,12,15],[24,56,25,60],[13,12,14,13],[13,16,14,30],[13,31,14,43],[13,49,14,52],[16,56,17,60],[20,0,21,0],[20,1,21,8],[20,56,20,60],[21,56,21,60],[22,56,23,60],[26,0,27,0],[26,1,27,8],[26,56,26,60],[27,56,27,60],[28,0,29,0],[28,1,29,8],[28,56,28,60],[29,56,29,60],[40,56,41,60],[30,56,31,60],[32,56,33,60],[34,0,35,0],[34,1,35,8],[34,56,34,60],[35,56,35,60],[36,0,37,0],[36,1,37,8],[36,56,36,60],[37,56,37,60],[38,56,39,60],[42,0,43,0],[42,1,43,8],[42,56,42,60],[43,56,43,60],[44,0,45,0],[44,1,45,8],[44,56,44,60],[45,56,45,60],[46,56,47,60],[48,56,49,60],[50,0,51,0],[50,1,51,8],[50,56,50,60],[51,56,51,60],[52,0,53,0],[52,1,53,8],[52,56,52,60],[53,56,53,60],[54,56,55,60]]}
[]
[null,"Schiedsrichterformular",null,null,null,null,null,null,null,null,null,null,null,null,null,null,null,null,null,null,null,null,null,null,null,null,null,null,null,null,null,null,null,null,null,null,null,null,null,null,null,null,null,null,null,null,null,null,null,"Punkte",null,null,null,"Beginn\nUhrzeit"]
[]
[null,{"$f":"IF(Q8=\"\",\"\",\" Position \" & M14 & \":     \" & Q8 & \"   -   \" & Q10)","v":" Position 3:     Fun Point Gerlingen 2   -   Ulmer SC 3"},null,null,null,null,null,null,null,null,null,null,null,null,null,null,null,null,null,null,null,null,null,null,null,null,null,null,null,null,null,null,null,null,null,null,null,null,null,null,null,null,null,null,null,null,"1. Satz",null,null,null,":"]
[]
[null,null,null,null,null,null,null,null,null,null,null,null,null,null,null,null,null,null,null,null,null,null,null,null,null,null,null,null,null,null,null,null,null,null,null,null,null,null,null,null,null,null,null,null,null,null,"2. Satz",null,null,null,":"]
[null,"Spielername",null,null,null,null,null,null,null,null,null,null,null,null,null,null,"Vereinsname",null,null,null,null,null,null,null,null,null,null,null,null,null,null,"Endergebnis"]
["A","Marc Hartmann",null,null,null,null,null,null,null,null,null,null,null,null,null,null,"Fun Point Gerlingen 2",null,null,null,null,null,null,null,null,null,null,null,null,null,null,":",null,null,null,null,null,null,null,null,null,null,null,null,null,null,"3. Satz",null,null,null,":"]
[]
["B",null,null,null,null,null,null,null,null,null,null,null,null,null,null,null,"Ulmer SC 3",null,null,null,null,null,null,null,null,null,null,null,null,null,null,null,null,null,null,null,null,null,null,null,null,null,null,null,null,null,"4. Satz",null,null,null,":"]
[]
[null,null,null,null,null,null,null,null,null,null,null,null,null,null,null,null,null,null,null,null,null,null,null,null,null,null,null,null,null,null,null,null,null,null,null,null,null,null,null,null,null,null,null,null,null,null,"5. Satz",null,null,null,":"]
[null,"Datum",null,null,null,null,null,null,null,null,null,null,"Position",null,"Court",null,"Schiedsrichter - Vereinsname",null,null,null,null,null,null,null,null,null,null,null,null,null,null,"Schiedsrichter (Position - Name)"]
[null,null,null,null,null,null,null,null,null,null,null,null,3,null,null,null,"Squash Devils 7",null,null,null,null,null,null,null,null,null,null,null,null,null,null,"Pos. 3 - ",null,null,null,null,null,null,null,null,null,null,null,null,null,null,null,null,null,"Spielende\nUhrzeit"]
[]
[]
[null,null,null,null,null,null,null,null,null,null,null,null,null,null,null,null,null,null,null,null,null,null,null,null,null,null,null,null,null,null,null,null,null,null,null,null,null,null,null,null,null,null,null,null,null,null,null,null,null,null,null,null,null,null,null,null,"Let=L / Fehler=x"]
[]
["A",{"$f":"IF($B$8=\"\",\"\",$B$8)","v":"Marc Hartmann"},null,null,null,null,null,null,null,null,null,null,null,null,null,null,null,null,null,null,null,null,null,null,null,null,null,null,null,null,null,null,null,null,null,null,null,null,null,null,null,null,null,null,null,null,null,null,null,null,null,null,null,null,null,null,"Aufschlag L/R"]
[null,null,null,null,null,null,null,null,null,null,null,null,null,null,null,null,null,null,null,null,null,null,null,null,null,null,null,null,null,null,null,null,null,null,null,null,null,null,null,null,null,null,null,null,null,null,null,null,null,null,null,null,null,null,null,null,"Punkte"]
["B",{"$f":"IF($B$10=\"\",\"\",$B$10)","v":""},null,null,null,null,null,null,null,null,null,null,null,null,null,null,null,null,null,null,null,null,null,null,null,null,null,null,null,null,null,null,null,null,null,null,null,null,null,null,null,null,null,null,null,null,null,null,null,null,null,null,null,null,null,null,"Punkte"]
[null,null,null,null,null,null,null,null,null,null,null,null,null,null,null,null,null,null,null,null,null,null,null,null,null,null,null,null,null,null,null,null,null,null,null,null,null,null,null,null,null,null,null,null,null,null,null,null,null,null,null,null,null,null,null,null,"Aufschlag L/R"]
[null,null,null,null,null,null,null,null,null,null,null,null,null,null,null,null,null,null,null,null,null,null,null,null,null,null,null,null,null,null,null,null,null,null,null,null,null,null,null,null,null,null,null,null,null,null,null,null,null,null,null,null,null,null,null,null,"Let=L / Fehler=x"]
[]
[null,null,null,null,null,null,null,null,null,null,null,null,null,null,null,null,null,null,null,null,null,null,null,null,null,null,null,null,null,null,null,null,null,null,null,null,null,null,null,null,null,null,null,null,null,null,null,null,null,null,null,null,null,null,null,null,"Let=L / Fehler=x"]
[]
["A",{"$f":"IF($B$8=\"\",\"\",$B$8)","v":"Marc Hartmann"},null,null,null,null,null,null,null,null,null,null,null,null,null,null,null,null,null,null,null,null,null,null,null,null,null,null,null,null,null,null,null,null,null,null,null,null,null,null,null,null,null,null,null,null,null,null,null,null,null,null,null,null,null,null,"Aufschlag L/R"]
[null,null,null,null,null,null,null,null,null,null,null,null,null,null,null,null,null,null,null,null,null,null,null,null,null,null,null,null,null,null,null,null,null,null,null,null,null,null,null,null,null,null,null,null,null,null,null,null,null,null,null,null,null,null,null,null,"Punkte"]
["B",{"$f":"IF($B$10=\"\",\"\",$B$10)","v":""},null,null,null,null,null,null,null,null,null,null,null,null,null,null,null,null,null,null,null,null,null,null,null,null,null,null,null,null,null,null,null,null,null,null,null,null,null,null,null,null,null,null,null,null,null,null,null,null,null,null,null,null,null,null,"Punkte"]
[null,null,null,null,null,null,null,null,null,null,null,null,null,null,null,null,null,null,null,null,null,null,null,null,null,null,null,null,null,null,null,null,null,null,null,null,null,null,null,null,null,null,null,null,null,null,null,null,null,null,null,null,null,null,null,null,"Aufschlag L/R"]
[null,null,null,null,null,null,null,null,null,null,null,null,null,null,null,null,null,null,null,null,null,null,null,null,null,null,null,null,null,null,null,null,null,null,null,null,null,null,null,null,null,null,null,null,null,null,null,null,null,null,null,null,null,null,null,null,"Let=L / Fehler=x"]
[]
[null,null,null,null,null,null,null,null,null,null,null,null,null,null,null,null,null,null,null,null,null,null,null,null,null,null,null,null,null,null,null,null,null,null,null,null,null,null,null,null,null,null,null,null,null,null,null,null,null,null,null,null,null,null,null,null,"Let=L / Fehler=x"]
[]
["A",{"$f":"IF($B$8=\"\",\"\",$B$8)","v":"Marc Hartmann"},null,null,null,null,null,null,null,null,null,null,null,null,null,null,null,null,null,null,null,null,null,null,null,null,null,null,null,null,null,null,null,null,null,null,null,null,null,null,null,null,null,null,null,null,null,null,null,null,null,null,null,null,null,null,"Aufschlag L/R"]
[null,null,null,null,null,null,null,null,null,null,null,null,null,null,null,null,null,null,null,null,null,null,null,null,null,null,null,null,null,null,null,null,null,null,null,null,null,null,null,null,null,null,null,null,null,null,null,null,null,null,null,null,null,null,null,null,"Punkte"]
["B",{"$f":"IF($B$10=\"\",\"\",$B$10)","v":""},null,null,null,null,null,null,null,null,null,null,null,null,null,null,null,null,null,null,null,null,null,null,null,null,null,null,null,null,null,null,null,null,null,null,null,null,null,null,null,null,null,null,null,null,null,null,null,null,null,null,null,null,null,null,"Punkte"]
[null,null,null,null,null,null,null,null,null,null,null,null,null,null,null,null,null,null,null,null,null,null,null,null,null,null,null,null,null,null,null,null,null,null,null,null,null,null,null,null,null,null,null,null,null,null,null,null,null,null,null,null,null,null,null,null,"Aufschlag L/R"]
[null,null,null,null,null,null,null,null,null,null,null,null,null,null,null,null,null,null,null,null,null,null,null,null,null,null,null,null,null,null,null,null,null,null,null,null,null,null,null,null,null,null,null,null,null,null,null,null,null,null,null,null,null,null,null,null,"Let=L / Fehler=x"]
[]
[null,null,null,null,null,null,null,null,null,null,null,null,null,null,null,null,null,null,null,null,null,null,null,null,null,null,null,null,null,null,null,null,null,null,null,null,null,null,null,null,null,null,null,null,null,null,null,null,null,null,null,null,null,null,null,null,"Let=L / Fehler=x"]
[]
["A",{"$f":"IF($B$8=\"\",\"\",$B$8)","v":"Marc Hartmann"},null,null,null,null,null,null,null,null,null,null,null,null,null,null,null,null,null,null,null,null,null,null,null,null,null,null,null,null,null,null,null,null,null,null,null,null,null,null,null,null,null,null,null,null,null,null,null,null,null,null,null,null,null,null,"Aufschlag L/R"]
[null,null,null,null,null,null,null,null,null,null,null,null,null,null,null,null,null,null,null,null,null,null,null,null,null,null,null,null,null,null,null,null,null,null,null,null,null,null,null,null,null,null,null,null,null,null,null,null,null,null,null,null,null,null,null,null,"Punkte"]
["B",{"$f":"IF($B$10=\"\",\"\",$B$10)","v":""},null,null,null,null,null,null,null,null,null,null,null,null,null,null,null,null,null,null,null,null,null,null,null,null,null,null,null,null,null,null,null,null,null,null,null,null,null,null,null,null,null,null,null,null,null,null,null,null,null,null,null,null,null,null,"Punkte"]
[null,null,null,null,null,null,null,null,null,null,null,null,null,null,null,null,null,null,null,null,null,null,null,null,null,null,null,null,null,null,null,null,null,null,null,null,null,null,null,null,null,null,null,null,null,null,null,null,null,null,null,null,null,null,null,null,"Aufschlag L/R"]
[null,null,null,null,null,null,null,null,null,null,null,null,null,null,null,null,null,null,null,null,null,null,null,null,null,null,null,null,null,null,null,null,null,null,null,null,null,null,null,null,null,null,null,null,null,null,null,null,null,null,null,null,null,null,null,null,"Let=L / Fehler=x"]
[]
[null,null,null,null,null,null,null,null,null,null,null,null,null,null,null,null,null,null,null,null,null,null,null,null,null,null,null,null,null,null,null,null,null,null,null,null,null,null,null,null,null,null,null,null,null,null,null,null,null,null,null,null,null,null,null,null,"Let=L / Fehler=x"]
[]
["A",{"$f":"IF($B$8=\"\",\"\",$B$8)","v":"Marc Hartmann"},null,null,null,null,null,null,null,null,null,null,null,null,null,null,null,null,null,null,null,null,null,null,null,null,null,null,null,null,null,null,null,null,null,null,null,null,null,null,null,null,null,null,null,null,null,null,null,null,null,null,null,null,null,null,"Aufschlag L/R"]
[null,null,null,null,null,null,null,null,null,null,null,null,null,null,null,null,null,null,null,null,null,null,null,null,null,null,null,null,null,null,null,null,null,null,null,null,null,null,null,null,null,null,null,null,null,null,null,null,null,null,null,null,null,null,null,null,"Punkte"]
["B",{"$f":"IF($B$10=\"\",\"\",$B$10)","v":""},null,null,null,null,null,null,null,null,null,null,null,null,null,null,null,null,null,null,null,null,null,null,null,null,null,null,null,null,null,null,null,null,null,null,null,null,null,null,null,null,null,null,null,null,null,null,null,null,null,null,null,null,null,null,"Punkte"]
[null,null,null,null,null,null,null,null,null,null,null,null,null,null,null,null,null,null,null,null,null,null,null,null,null,null,null,null,null,null,null,null,null,null,null,null,null,null,null,null,null,null,null,null,null,null,null,null,null,null,null,null,null,null,null,null,"Aufschlag L/R"]
[null,null,null,null,null,null,null,null,null,null,null,null,null,null,null,null,null,null,null,null,null,null,null,null,null,null,null,null,null,null,null,null,null,null,null,null,null,null,null,null,null,null,null,null,null,null,null,null,null,null,null,null,null,null,null,null,"Let=L / Fehler=x"]

{"sheet":"Paarung 1 | Spiel 1","index":4,"n_rows":55,"n_cols":57,"rows_kept":55,"cut":false,"hidden":false,"merged":[[1,1,2,27],[1,49,2,52],[1,53,2,55],[3,1,4,34],[3,46,4,48],[3,50,4,51],[5,46,6,48],[5,50,6,51],[7,0,8,0],[7,1,8,15],[7,16,8,30],[7,31,10,34],[7,46,8,48],[7,50,8,51],[9,0,10,0],[9,1,10,15],[18,0,19,0],[18,1,19,8],[18,56,18,60],[19,56,19,60],[9,16,10,30],[9,46,10,48],[9,50,10,51],[11,46,12,48],[11,50,12,51],[12,12,12,13],[12,14,12,15],[24,56,25,60],[13,12,14,13],[13,16,14,30],[13,31,14,43],[13,49,14,52],[16,56,17,60],[20,0,21,0],[20,1,21,8],[20,56,20,60],[21,56,21,60],[22,56,23,60],[26,0,27,0],[26,1,27,8],[26,56,26,60],[27,56,27,60],[28,0,29,0],[28,1,29,8],[28,56,28,60],[29,56,29,60],[40,56,41,60],[30,56,31,60],[32,56,33,60],[34,0,35,0],[34,1,35,8],[34,56,34,60],[35,56,35,60],[36,0,37,0],[36,1,37,8],[36,56,36,60],[37,56,37,60],[38,56,39,60],[42,0,43,0],[42,1,43,8],[42,56,42,60],[43,56,43,60],[44,0,45,0],[44,1,45,8],[44,56,44,60],[45,56,45,60],[46,56,47,60],[48,56,49,60],[50,0,51,0],[50,1,51,8],[50,56,50,60],[51,56,51,60],[52,0,53,0],[52,1,53,8],[52,56,52,60],[53,56,53,60],[54,56,55,60]]}
[]
[null,"Schiedsrichterformular",null,null,null,null,null,null,null,null,null,null,null,null,null,null,null,null,null,null,null,null,null,null,null,null,null,null,null,null,null,null,null,null,null,null,null,null,null,null,null,null,null,null,null,null,null,null,null,"Punkte",null,null,null,"Beginn\nUhrzeit"]
[]
[null,{"$f":"IF(Q8=\"\",\"\",\" Position \" & M14 & \":     \" & Q8 & \"   -   \" & Q10)","v":" Position 1:     Fun Point Gerlingen 2   -   Ulmer SC 3"},null,null,null,null,null,null,null,null,null,null,null,null,null,null,null,null,null,null,null,null,null,null,null,null,null,null,null,null,null,null,null,null,null,null,null,null,null,null,null,null,null,null,null,null,"1. Satz",null,null,null,":"]
[]
[null,null,null,null,null,null,null,null,null,null,null,null,null,null,null,null,null,null,null,null,null,null,null,null,null,null,null,null,null,null,null,null,null,null,null,null,null,null,null,null,null,null,null,null,null,null,"2. Satz",null,null,null,":"]
[null,"Spielername",null,null,null,null,null,null,null,null,null,null,null,null,null,null,"Vereinsname",null,null,null,null,null,null,null,null,null,null,null,null,null,null,"Endergebnis"]
["A","Ralph Bieber",null,null,null,null,null,null,null,null,null,null,null,null,null,null,"Fun Point Gerlingen 2",null,null,null,null,null,null,null,null,null,null,null,null,null,null,":",null,null,null,null,null,null,null,null,null,null,null,null,null,null,"3. Satz",null,null,null,":"]
[]
["B",null,null,null,null,null,null,null,null,null,null,null,null,null,null,null,"Ulmer SC 3",null,null,null,null,null,null,null,null,null,null,null,null,null,null,null,null,null,null,null,null,null,null,null,null,null,null,null,null,null,"4. Satz",null,null,null,":"]
[]
[null,null,null,null,null,null,null,null,null,null,null,null,null,null,null,null,null,null,null,null,null,null,null,null,null,null,null,null,null,null,null,null,null,null,null,null,null,null,null,null,null,null,null,null,null,null,"5. Satz",null,null,null,":"]
[null,"Datum",null,null,null,null,null,null,null,null,null,null,"Position",null,"Court",null,"Schiedsrichter - Vereinsname",null,null,null,null,null,null,null,null,null,null,null,null,null,null,"Schiedsrichter (Position - Name)"]
[null,null,null,null,null,null,null,null,null,null,null,null,1,null,null,null,"Squash Devils 7",null,null,null,null,null,null,null,null,null,null,null,null,null,null,"Pos. 1 - ",null,null,null,null,null,null,null,null,null,null,null,null,null,null,null,null,null,"Spielende\nUhrzeit"]
[]
[]
[null,null,null,null,null,null,null,null,null,null,null,null,null,null,null,null,null,null,null,null,null,null,null,null,null,null,null,null,null,null,null,null,null,null,null,null,null,null,null,null,null,null,null,null,null,null,null,null,null,null,null,null,null,null,null,null,"Let=L / Fehler=x"]
[]
["A",{"$f":"IF($B$8=\"\",\"\",$B$8)","v":"Ralph Bieber"},null,null,null,null,null,null,null,null,null,null,null,null,null,null,null,null,null,null,null,null,null,null,null,null,null,null,null,null,null,null,null,null,null,null,null,null,null,null,null,null,null,null,null,null,null,null,null,null,null,null,null,null,null,null,"Aufschlag L/R"]
[null,null,null,null,null,null,null,null,null,null,null,null,null,null,null,null,null,null,null,null,null,null,null,null,null,null,null,null,null,null,null,null,null,null,null,null,null,null,null,null,null,null,null,null,null,null,null,null,null,null,null,null,null,null,null,null,"Punkte"]
["B",{"$f":"IF($B$10=\"\",\"\",$B$10)","v":""},null,null,null,null,null,null,null,null,null,null,null,null,null,null,null,null,null,null,null,null,null,null,null,null,null,null,null,null,null,null,null,null,null,null,null,null,null,null,null,null,null,null,null,null,null,null,null,null,null,null,null,null,null,null,"Punkte"]
[null,null,null,null,null,null,null,null,null,null,null,null,null,null,null,null,null,null,null,null,null,null,null,null,null,null,null,null,null,null,null,null,null,null,null,null,null,null,null,null,null,null,null,null,null,null,null,null,null,null,null,null,null,null,null,null,"Aufschlag L/R"]
[null,null,null,null,null,null,null,null,null,null,null,null,null,null,null,null,null,null,null,null,null,null,null,null,null,null,null,null,null,null,null,null,null,null,null,null,null,null,null,null,null,null,null,null,null,null,null,null,null,null,null,null,null,null,null,null,"Let=L / Fehler=x"]
[]
[null,null,null,null,null,null,null,null,null,null,null,null,null,null,null,null,null,null,null,null,null,null,null,null,null,null,null,null,null,null,null,null,null,null,null,null,null,null,null,null,null,null,null,null,null,null,null,null,null,null,null,null,null,null,null,null,"Let=L / Fehler=x"]
[]
["A",{"$f":"IF($B$8=\"\",\"\",$B$8)","v":"Ralph Bieber"},null,null,null,null,null,null,null,null,null,null,null,null,null,null,null,null,null,null,null,null,null,null,null,null,null,null,null,null,null,null,null,null,null,null,null,null,null,null,null,null,null,null,null,null,null,null,null,null,null,null,null,null,null,null,"Aufschlag L/R"]
[null,null,null,null,null,null,null,null,null,null,null,null,null,null,null,null,null,null,null,null,null,null,null,null,null,null,null,null,null,null,null,null,null,null,null,null,null,null,null,null,null,null,null,null,null,null,null,null,null,null,null,null,null,null,null,null,"Punkte"]
["B",{"$f":"IF($B$10=\"\",\"\",$B$10)","v":""},null,null,null,null,null,null,null,null,null,null,null,null,null,null,null,null,null,null,null,null,null,null,null,null,null,null,null,null,null,null,null,null,null,null,null,null,null,null,null,null,null,null,null,null,null,null,null,null,null,null,null,null,null,null,"Punkte"]
[null,null,null,null,null,null,null,null,null,null,null,null,null,null,null,null,null,null,null,null,null,null,null,null,null,null,null,null,null,null,null,null,null,null,null,null,null,null,null,null,null,null,null,null,null,null,null,null,null,null,null,null,null,null,null,null,"Aufschlag L/R"]
[null,null,null,null,null,null,null,null,null,null,null,null,null,null,null,null,null,null,null,null,null,null,null,null,null,null,null,null,null,null,null,null,null,null,null,null,null,null,null,null,null,null,null,null,null,null,null,null,null,null,null,null,null,null,null,null,"Let=L / Fehler=x"]
[]
[null,null,null,null,null,null,null,null,null,null,null,null,null,null,null,null,null,null,null,null,null,null,null,null,null,null,null,null,null,null,null,null,null,null,null,null,null,null,null,null,null,null,null,null,null,null,null,null,null,null,null,null,null,null,null,null,"Let=L / Fehler=x"]
[]
["A",{"$f":"IF($B$8=\"\",\"\",$B$8)","v":"Ralph Bieber"},null,null,null,null,null,null,null,null,null,null,null,null,null,null,null,null,null,null,null,null,null,null,null,null,null,null,null,null,null,null,null,null,null,null,null,null,null,null,null,null,null,null,null,null,null,null,null,null,null,null,null,null,null,null,"Aufschlag L/R"]
[null,null,null,null,null,null,null,null,null,null,null,null,null,null,null,null,null,null,null,null,null,null,null,null,null,null,null,null,null,null,null,null,null,null,null,null,null,null,null,null,null,null,null,null,null,null,null,null,null,null,null,null,null,null,null,null,"Punkte"]
["B",{"$f":"IF($B$10=\"\",\"\",$B$10)","v":""},null,null,null,null,null,null,null,null,null,null,null,null,null,null,null,null,null,null,null,null,null,null,null,null,null,null,null,null,null,null,null,null,null,null,null,null,null,null,null,null,null,null,null,null,null,null,null,null,null,null,null,null,null,null,"Punkte"]
[null,null,null,null,null,null,null,null,null,null,null,null,null,null,null,null,null,null,null,null,null,null,null,null,null,null,null,null,null,null,null,null,null,null,null,null,null,null,null,null,null,null,null,null,null,null,null,null,null,null,null,null,null,null,null,null,"Aufschlag L/R"]
[null,null,null,null,null,null,null,null,null,null,null,null,null,null,null,null,null,null,null,null,null,null,null,null,null,null,null,null,null,null,null,null,null,null,null,null,null,null,null,null,null,null,null,null,null,null,null,null,null,null,null,null,null,null,null,null,"Let=L / Fehler=x"]
[]
[null,null,null,null,null,null,null,null,null,null,null,null,null,null,null,null,null,null,null,null,null,null,null,null,null,null,null,null,null,null,null,null,null,null,null,null,null,null,null,null,null,null,null,null,null,null,null,null,null,null,null,null,null,null,null,null,"Let=L / Fehler=x"]
[]
["A",{"$f":"IF($B$8=\"\",\"\",$B$8)","v":"Ralph Bieber"},null,null,null,null,null,null,null,null,null,null,null,null,null,null,null,null,null,null,null,null,null,null,null,null,null,null,null,null,null,null,null,null,null,null,null,null,null,null,null,null,null,null,null,null,null,null,null,null,null,null,null,null,null,null,"Aufschlag L/R"]
[null,null,null,null,null,null,null,null,null,null,null,null,null,null,null,null,null,null,null,null,null,null,null,null,null,null,null,null,null,null,null,null,null,null,null,null,null,null,null,null,null,null,null,null,null,null,null,null,null,null,null,null,null,null,null,null,"Punkte"]
["B",{"$f":"IF($B$10=\"\",\"\",$B$10)","v":""},null,null,null,null,null,null,null,null,null,null,null,null,null,null,null,null,null,null,null,null,null,null,null,null,null,null,null,null,null,null,null,null,null,null,null,null,null,null,null,null,null,null,null,null,null,null,null,null,null,null,null,null,null,null,"Punkte"]
[null,null,null,null,null,null,null,null,null,null,null,null,null,null,null,null,null,null,null,null,null,null,null,null,null,null,null,null,null,null,null,null,null,null,null,null,null,null,null,null,null,null,null,null,null,null,null,null,null,null,null,null,null,null,null,null,"Aufschlag L/R"]
[null,null,null,null,null,null,null,null,null,null,null,null,null,null,null,null,null,null,null,null,null,null,null,null,null,null,null,null,null,null,null,null,null,null,null,null,null,null,null,null,null,null,null,null,null,null,null,null,null,null,null,null,null,null,null,null,"Let=L / Fehler=x"]
[]
[null,null,null,null,null,null,null,null,null,null,null,null,null,null,null,null,null,null,null,null,null,null,null,null,null,null,null,null,null,null,null,null,null,null,null,null,null,null,null,null,null,null,null,null,null,null,null,null,null,null,null,null,null,null,null,null,"Let=L / Fehler=x"]
[]
["A",{"$f":"IF($B$8=\"\",\"\",$B$8)","v":"Ralph Bieber"},null,null,null,null,null,null,null,null,null,null,null,null,null,null,null,null,null,null,null,null,null,null,null,null,null,null,null,null,null,null,null,null,null,null,null,null,null,null,null,null,null,null,null,null,null,null,null,null,null,null,null,null,null,null,"Aufschlag L/R"]
[null,null,null,null,null,null,null,null,null,null,null,null,null,null,null,null,null,null,null,null,null,null,null,null,null,null,null,null,null,null,null,null,null,null,null,null,null,null,null,null,null,null,null,null,null,null,null,null,null,null,null,null,null,null,null,null,"Punkte"]
["B",{"$f":"IF($B$10=\"\",\"\",$B$10)","v":""},null,null,null,null,null,null,null,null,null,null,null,null,null,null,null,null,null,null,null,null,null,null,null,null,null,null,null,null,null,null,null,null,null,null,null,null,null,null,null,null,null,null,null,null,null,null,null,null,null,null,null,null,null,null,"Punkte"]
[null,null,null,null,null,null,null,null,null,null,null,null,null,null,null,null,null,null,null,null,null,null,null,null,null,null,null,null,null,null,null,null,null,null,null,null,null,null,null,null,null,null,null,null,null,null,null,null,null,null,null,null,null,null,null,null,"Aufschlag L/R"]
[null,null,null,null,null,null,null,null,null,null,null,null,null,null,null,null,null,null,null,null,null,null,null,null,null,null,null,null,null,null,null,null,null,null,null,null,null,null,null,null,null,null,null,null,null,null,null,null,null,null,null,null,null,null,null,null,"Let=L / Fehler=x"]

{"sheet":"Paarung 1 | Spiel 2","index":5,"n_rows":55,"n_cols":57,"rows_kept":55,"cut":false,"hidden":false,"merged":[[1,1,2,27],[1,49,2,52],[1,53,2,55],[3,1,4,34],[3,46,4,48],[3,50,4,51],[5,46,6,48],[5,50,6,51],[7,0,8,0],[7,1,8,15],[7,16,8,30],[7,31,10,34],[7,46,8,48],[7,50,8,51],[9,0,10,0],[9,1,10,15],[18,0,19,0],[18,1,19,8],[18,56,18,60],[19,56,19,60],[9,16,10,30],[9,46,10,48],[9,50,10,51],[11,46,12,48],[11,50,12,51],[12,12,12,13],[12,14,12,15],[24,56,25,60],[13,12,14,13],[13,16,14,30],[13,31,14,43],[13,49,14,52],[16,56,17,60],[20,0,21,0],[20,1,21,8],[20,56,20,60],[21,56,21,60],[22,56,23,60],[26,0,27,0],[26,1,27,8],[26,56,26,60],[27,56,27,60],[28,0,29,0],[28,1,29,8],[28,56,28,60],[29,56,29,60],[40,56,41,60],[30,56,31,60],[32,56,33,60],[34,0,35,0],[34,1,35,8],[34,56,34,60],[35,56,35,60],[36,0,37,0],[36,1,37,8],[36,56,36,60],[37,56,37,60],[38,56,39,60],[42,0,43,0],[42,1,43,8],[42,56,42,60],[43,56,43,60],[44,0,45,0],[44,1,45,8],[44,56,44,60],[45,56,45,60],[46,56,47,60],[48,56,49,60],[50,0,51,0],[50,1,51,8],[50,56,50,60],[51,56,51,60],[52,0,53,0],[52,1,53,8],[52,56,52,60],[53,56,53,60],[54,56,55,60]]}
[]
[null,"Schiedsrichterformular",null,null,null,null,null,null,null,null,null,null,null,null,null,null,null,null,null,null,null,null,null,null,null,null,null,null,null,null,null,null,null,null,null,null,null,null,null,null,null,null,null,null,null,null,null,null,null,"Punkte",null,null,null,"Beginn\nUhrzeit"]
[]
[null,{"$f":"IF(Q8=\"\",\"\",\" Position \" & M14 & \":     \" & Q8 & \"   -   \" & Q10)","v":" Position 2:     Fun Point Gerlingen 2   -   Ulmer SC 3"},null,null,null,null,null,null,null,null,null,null,null,null,null,null,null,null,null,null,null,null,null,null,null,null,null,null,null,null,null,null,null,null,null,null,null,null,null,null,null,null,null,null,null,null,"1. Satz",null,null,null,":"]
[]
[null,null,null,null,null,null,null,null,null,null,null,null,null,null,null,null,null,null,null,null,null,null,null,null,null,null,null,null,null,null,null,null,null,null,null,null,null,null,null,null,null,null,null,null,null,null,"2. Satz",null,null,null,":"]
[null,"Spielername",null,null,null,null,null,null,null,null,null,null,null,null,null,null,"Vereinsname",null,null,null,null,null,null,null,null,null,null,null,null,null,null,"Endergebnis"]
["A","Rainer Ginzel",null,null,null,null,null,null,null,null,null,null,null,null,null,null,"Fun Point Gerlingen 2",null,null,null,null,null,null,null,null,null,null,null,null,null,null,":",null,null,null,null,null,null,null,null,null,null,null,null,null,null,"3. Satz",null,null,null,":"]
[]
["B",null,null,null,null,null,null,null,null,null,null,null,null,null,null,null,"Ulmer SC 3",null,null,null,null,null,null,null,null,null,null,null,null,null,null,null,null,null,null,null,null,null,null,null,null,null,null,null,null,null,"4. Satz",null,null,null,":"]
[]
[null,null,null,null,null,null,null,null,null,null,null,null,null,null,null,null,null,null,null,null,null,null,null,null,null,null,null,null,null,null,null,null,null,null,null,null,null,null,null,null,null,null,null,null,null,null,"5. Satz",null,null,null,":"]
[null,"Datum",null,null,null,null,null,null,null,null,null,null,"Position",null,"Court",null,"Schiedsrichter - Vereinsname",null,null,null,null,null,null,null,null,null,null,null,null,null,null,"Schiedsrichter (Position - Name)"]
[null,null,null,null,null,null,null,null,null,null,null,null,2,null,null,null,"Squash Devils 7",null,null,null,null,null,null,null,null,null,null,null,null,null,null,"Pos. 2 - ",null,null,null,null,null,null,null,null,null,null,null,null,null,null,null,null,null,"Spielende\nUhrzeit"]
[]
[]
[null,null,null,null,null,null,null,null,null,null,null,null,null,null,null,null,null,null,null,null,null,null,null,null,null,null,null,null,null,null,null,null,null,null,null,null,null,null,null,null,null,null,null,null,null,null,null,null,null,null,null,null,null,null,null,null,"Let=L / Fehler=x"]
[]
["A",{"$f":"IF($B$8=\"\",\"\",$B$8)","v":"Rainer Ginzel"},null,null,null,null,null,null,null,null,null,null,null,null,null,null,null,null,null,null,null,null,null,null,null,null,null,null,null,null,null,null,null,null,null,null,null,null,null,null,null,null,null,null,null,null,null,null,null,null,null,null,null,null,null,null,"Aufschlag L/R"]
[null,null,null,null,null,null,null,null,null,null,null,null,null,null,null,null,null,null,null,null,null,null,null,null,null,null,null,null,null,null,null,null,null,null,null,null,null,null,null,null,null,null,null,null,null,null,null,null,null,null,null,null,null,null,null,null,"Punkte"]
["B",{"$f":"IF($B$10=\"\",\"\",$B$10)","v":""},null,null,null,null,null,null,null,null,null,null,null,null,null,null,null,null,null,null,null,null,null,null,null,null,null,null,null,null,null,null,null,null,null,null,null,null,null,null,null,null,null,null,null,null,null,null,null,null,null,null,null,null,null,null,"Punkte"]
[null,null,null,null,null,null,null,null,null,null,null,null,null,null,null,null,null,null,null,null,null,null,null,null,null,null,null,null,null,null,null,null,null,null,null,null,null,null,null,null,null,null,null,null,null,null,null,null,null,null,null,null,null,null,null,null,"Aufschlag L/R"]
[null,null,null,null,null,null,null,null,null,null,null,null,null,null,null,null,null,null,null,null,null,null,null,null,null,null,null,null,null,null,null,null,null,null,null,null,null,null,null,null,null,null,null,null,null,null,null,null,null,null,null,null,null,null,null,null,"Let=L / Fehler=x"]
[]
[null,null,null,null,null,null,null,null,null,null,null,null,null,null,null,null,null,null,null,null,null,null,null,null,null,null,null,null,null,null,null,null,null,null,null,null,null,null,null,null,null,null,null,null,null,null,null,null,null,null,null,null,null,null,null,null,"Let=L / Fehler=x"]
[]
["A",{"$f":"IF($B$8=\"\",\"\",$B$8)","v":"Rainer Ginzel"},null,null,null,null,null,null,null,null,null,null,null,null,null,null,null,null,null,null,null,null,null,null,null,null,null,null,null,null,null,null,null,null,null,null,null,null,null,null,null,null,null,null,null,null,null,null,null,null,null,null,null,null,null,null,"Aufschlag L/R"]
[null,null,null,null,null,null,null,null,null,null,null,null,null,null,null,null,null,null,null,null,null,null,null,null,null,null,null,null,null,null,null,null,null,null,null,null,null,null,null,null,null,null,null,null,null,null,null,null,null,null,null,null,null,null,null,null,"Punkte"]
["B",{"$f":"IF($B$10=\"\",\"\",$B$10)","v":""},null,null,null,null,null,null,null,null,null,null,null,null,null,null,null,null,null,null,null,null,null,null,null,null,null,null,null,null,null,null,null,null,null,null,null,null,null,null,null,null,null,null,null,null,null,null,null,null,null,null,null,null,null,null,"Punkte"]
[null,null,null,null,null,null,null,null,null,null,null,null,null,null,null,null,null,null,null,null,null,null,null,null,null,null,null,null,null,null,null,null,null,null,null,null,null,null,null,null,null,null,null,null,null,null,null,null,null,null,null,null,null,null,null,null,"Aufschlag L/R"]
[null,null,null,null,null,null,null,null,null,null,null,null,null,null,null,null,null,null,null,null,null,null,null,null,null,null,null,null,null,null,null,null,null,null,null,null,null,null,null,null,null,null,null,null,null,null,null,null,null,null,null,null,null,null,null,null,"Let=L / Fehler=x"]
[]
[null,null,null,null,null,null,null,null,null,null,null,null,null,null,null,null,null,null,null,null,null,null,null,null,null,null,null,null,null,null,null,null,null,null,null,null,null,null,null,null,null,null,null,null,null,null,null,null,null,null,null,null,null,null,null,null,"Let=L / Fehler=x"]
[]
["A",{"$f":"IF($B$8=\"\",\"\",$B$8)","v":"Rainer Ginzel"},null,null,null,null,null,null,null,null,null,null,null,null,null,null,null,null,null,null,null,null,null,null,null,null,null,null,null,null,null,null,null,null,null,null,null,null,null,null,null,null,null,null,null,null,null,null,null,null,null,null,null,null,null,null,"Aufschlag L/R"]
[null,null,null,null,null,null,null,null,null,null,null,null,null,null,null,null,null,null,null,null,null,null,null,null,null,null,null,null,null,null,null,null,null,null,null,null,null,null,null,null,null,null,null,null,null,null,null,null,null,null,null,null,null,null,null,null,"Punkte"]
["B",{"$f":"IF($B$10=\"\",\"\",$B$10)","v":""},null,null,null,null,null,null,null,null,null,null,null,null,null,null,null,null,null,null,null,null,null,null,null,null,null,null,null,null,null,null,null,null,null,null,null,null,null,null,null,null,null,null,null,null,null,null,null,null,null,null,null,null,null,null,"Punkte"]
[null,null,null,null,null,null,null,null,null,null,null,null,null,null,null,null,null,null,null,null,null,null,null,null,null,null,null,null,null,null,null,null,null,null,null,null,null,null,null,null,null,null,null,null,null,null,null,null,null,null,null,null,null,null,null,null,"Aufschlag L/R"]
[null,null,null,null,null,null,null,null,null,null,null,null,null,null,null,null,null,null,null,null,null,null,null,null,null,null,null,null,null,null,null,null,null,null,null,null,null,null,null,null,null,null,null,null,null,null,null,null,null,null,null,null,null,null,null,null,"Let=L / Fehler=x"]
[]
[null,null,null,null,null,null,null,null,null,null,null,null,null,null,null,null,null,null,null,null,null,null,null,null,null,null,null,null,null,null,null,null,null,null,null,null,null,null,null,null,null,null,null,null,null,null,null,null,null,null,null,null,null,null,null,null,"Let=L / Fehler=x"]
[]
["A",{"$f":"IF($B$8=\"\",\"\",$B$8)","v":"Rainer Ginzel"},null,null,null,null,null,null,null,null,null,null,null,null,null,null,null,null,null,null,null,null,null,null,null,null,null,null,null,null,null,null,null,null,null,null,null,null,null,null,null,null,null,null,null,null,null,null,null,null,null,null,null,null,null,null,"Aufschlag L/R"]
[null,null,null,null,null,null,null,null,null,null,null,null,null,null,null,null,null,null,null,null,null,null,null,null,null,null,null,null,null,null,null,null,null,null,null,null,null,null,null,null,null,null,null,null,null,null,null,null,null,null,null,null,null,null,null,null,"Punkte"]
["B",{"$f":"IF($B$10=\"\",\"\",$B$10)","v":""},null,null,null,null,null,null,null,null,null,null,null,null,null,null,null,null,null,null,null,null,null,null,null,null,null,null,null,null,null,null,null,null,null,null,null,null,null,null,null,null,null,null,null,null,null,null,null,null,null,null,null,null,null,null,"Punkte"]
[null,null,null,null,null,null,null,null,null,null,null,null,null,null,null,null,null,null,null,null,null,null,null,null,null,null,null,null,null,null,null,null,null,null,null,null,null,null,null,null,null,null,null,null,null,null,null,null,null,null,null,null,null,null,null,null,"Aufschlag L/R"]
[null,null,null,null,null,null,null,null,null,null,null,null,null,null,null,null,null,null,null,null,null,null,null,null,null,null,null,null,null,null,null,null,null,null,null,null,null,null,null,null,null,null,null,null,null,null,null,null,null,null,null,null,null,null,null,null,"Let=L / Fehler=x"]
[]
[null,null,null,null,null,null,null,null,null,null,null,null,null,null,null,null,null,null,null,null,null,null,null,null,null,null,null,null,null,null,null,null,null,null,null,null,null,null,null,null,null,null,null,null,null,null,null,null,null,null,null,null,null,null,null,null,"Let=L / Fehler=x"]
[]
["A",{"$f":"IF($B$8=\"\",\"\",$B$8)","v":"Rainer Ginzel"},null,null,null,null,null,null,null,null,null,null,null,null,null,null,null,null,null,null,null,null,null,null,null,null,null,null,null,null,null,null,null,null,null,null,null,null,null,null,null,null,null,null,null,null,null,null,null,null,null,null,null,null,null,null,"Aufschlag L/R"]
[null,null,null,null,null,null,null,null,null,null,null,null,null,null,null,null,null,null,null,null,null,null,null,null,null,null,null,null,null,null,null,null,null,null,null,null,null,null,null,null,null,null,null,null,null,null,null,null,null,null,null,null,null,null,null,null,"Punkte"]
["B",{"$f":"IF($B$10=\"\",\"\",$B$10)","v":""},null,null,null,null,null,null,null,null,null,null,null,null,null,null,null,null,null,null,null,null,null,null,null,null,null,null,null,null,null,null,null,null,null,null,null,null,null,null,null,null,null,null,null,null,null,null,null,null,null,null,null,null,null,null,"Punkte"]
[null,null,null,null,null,null,null,null,null,null,null,null,null,null,null,null,null,null,null,null,null,null,null,null,null,null,null,null,null,null,null,null,null,null,null,null,null,null,null,null,null,null,null,null,null,null,null,null,null,null,null,null,null,null,null,null,"Aufschlag L/R"]
[null,null,null,null,null,null,null,null,null,null,null,null,null,null,null,null,null,null,null,null,null,null,null,null,null,null,null,null,null,null,null,null,null,null,null,null,null,null,null,null,null,null,null,null,null,null,null,null,null,null,null,null,null,null,null,null,"Let=L / Fehler=x"]

{"sheet":"Paarung 2 | Spiel 4","index":6,"n_rows":55,"n_cols":57,"rows_kept":55,"cut":false,"hidden":false,"merged":[[1,1,2,27],[1,49,2,52],[1,53,2,55],[3,1,4,34],[3,46,4,48],[3,50,4,51],[5,46,6,48],[5,50,6,51],[7,0,8,0],[7,1,8,15],[7,16,8,30],[7,31,10,34],[7,46,8,48],[7,50,8,51],[9,0,10,0],[9,1,10,15],[18,0,19,0],[18,1,19,8],[18,56,18,60],[19,56,19,60],[9,16,10,30],[9,46,10,48],[9,50,10,51],[11,46,12,48],[11,50,12,51],[12,12,12,13],[12,14,12,15],[24,56,25,60],[13,12,14,13],[13,16,14,30],[13,31,14,43],[13,49,14,52],[16,56,17,60],[20,0,21,0],[20,1,21,8],[20,56,20,60],[21,56,21,60],[22,56,23,60],[26,0,27,0],[26,1,27,8],[26,56,26,60],[27,56,27,60],[28,0,29,0],[28,1,29,8],[28,56,28,60],[29,56,29,60],[40,56,41,60],[30,56,31,60],[32,56,33,60],[34,0,35,0],[34,1,35,8],[34,56,34,60],[35,56,35,60],[36,0,37,0],[36,1,37,8],[36,56,36,60],[37,56,37,60],[38,56,39,60],[42,0,43,0],[42,1,43,8],[42,56,42,60],[43,56,43,60],[44,0,45,0],[44,1,45,8],[44,56,44,60],[45,56,45,60],[46,56,47,60],[48,56,49,60],[50,0,51,0],[50,1,51,8],[50,56,50,60],[51,56,51,60],[52,0,53,0],[52,1,53,8],[52,56,52,60],[53,56,53,60],[54,56,55,60]]}
[]
[null,"Schiedsrichterformular",null,null,null,null,null,null,null,null,null,null,null,null,null,null,null,null,null,null,null,null,null,null,null,null,null,null,null,null,null,null,null,null,null,null,null,null,null,null,null,null,null,null,null,null,null,null,null,"Punkte",null,null,null,"Beginn\nUhrzeit"]
[]
[null,{"$f":"IF(Q8=\"\",\"\",\" Position \" & M14 & \":     \" & Q8 & \"   -   \" & Q10)","v":" Position 4:     Ulmer SC 3   -   Squash Devils 7"},null,null,null,null,null,null,null,null,null,null,null,null,null,null,null,null,null,null,null,null,null,null,null,null,null,null,null,null,null,null,null,null,null,null,null,null,null,null,null,null,null,null,null,null,"1. Satz",null,null,null,":"]
[]
[null,null,null,null,null,null,null,null,null,null,null,null,null,null,null,null,null,null,null,null,null,null,null,null,null,null,null,null,null,null,null,null,null,null,null,null,null,null,null,null,null,null,null,null,null,null,"2. Satz",null,null,null,":"]
[null,"Spielername",null,null,null,null,null,null,null,null,null,null,null,null,null,null,"Vereinsname",null,null,null,null,null,null,null,null,null,null,null,null,null,null,"Endergebnis"]
["A",null,null,null,null,null,null,null,null,null,null,null,null,null,null,null,"Ulmer SC 3",null,null,null,null,null,null,null,null,null,null,null,null,null,null,":",null,null,null,null,null,null,null,null,null,null,null,null,null,null,"3. Satz",null,null,null,":"]
[]
["B",null,null,null,null,null,null,null,null,null,null,null,null,null,null,null,"Squash Devils 7",null,null,null,null,null,null,null,null,null,null,null,null,null,null,null,null,null,null,null,null,null,null,null,null,null,null,null,null,null,"4. Satz",null,null,null,":"]
[]
[null,null,null,null,null,null,null,null,null,null,null,null,null,null,null,null,null,null,null,null,null,null,null,null,null,null,null,null,null,null,null,null,null,null,null,null,null,null,null,null,null,null,null,null,null,null,"5. Satz",null,null,null,":"]
[null,"Datum",null,null,null,null,null,null,null,null,null,null,"Position",null,"Court",null,"Schiedsrichter - Vereinsname",null,null,null,null,null,null,null,null,null,null,null,null,null,null,"Schiedsrichter (Position - Name)"]
[null,null,null,null,null,null,null,null,null,null,null,null,4,null,null,null,"Fun Point Gerlingen 2",null,null,null,null,null,null,null,null,null,null,null,null,null,null,"Pos. 4 - Axel Nieder",null,null,null,null,null,null,null,null,null,null,null,null,null,null,null,null,null,"Spielende\nUhrzeit"]
[]
[]
[null,null,null,null,null,null,null,null,null,null,null,null,null,null,null,null,null,null,null,null,null,null,null,null,null,null,null,null,null,null,null,null,null,null,null,null,null,null,null,null,null,null,null,null,null,null,null,null,null,null,null,null,null,null,null,null,"Let=L / Fehler=x"]
[]
["A",{"$f":"IF($B$8=\"\",\"\",$B$8)","v":""},null,null,null,null,null,null,null,null,null,null,null,null,null,null,null,null,null,null,null,null,null,null,null,null,null,null,null,null,null,null,null,null,null,null,null,null,null,null,null,null,null,null,null,null,null,null,null,null,null,null,null,null,null,null,"Aufschlag L/R"]
[null,null,null,null,null,null,null,null,null,null,null,null,null,null,null,null,null,null,null,null,null,null,null,null,null,null,null,null,null,null,null,null,null,null,null,null,null,null,null,null,null,null,null,null,null,null,null,null,null,null,null,null,null,null,null,null,"Punkte"]
["B",{"$f":"IF($B$10=\"\",\"\",$B$10)","v":""},null,null,null,null,null,null,null,null,null,null,null,null,null,null,null,null,null,null,null,null,null,null,null,null,null,null,null,null,null,null,null,null,null,null,null,null,null,null,null,null,null,null,null,null,null,null,null,null,null,null,null,null,null,null,"Punkte"]
[null,null,null,null,null,null,null,null,null,null,null,null,null,null,null,null,null,null,null,null,null,null,null,null,null,null,null,null,null,null,null,null,null,null,null,null,null,null,null,null,null,null,null,null,null,null,null,null,null,null,null,null,null,null,null,null,"Aufschlag L/R"]
[null,null,null,null,null,null,null,null,null,null,null,null,null,null,null,null,null,null,null,null,null,null,null,null,null,null,null,null,null,null,null,null,null,null,null,null,null,null,null,null,null,null,null,null,null,null,null,null,null,null,null,null,null,null,null,null,"Let=L / Fehler=x"]
[]
[null,null,null,null,null,null,null,null,null,null,null,null,null,null,null,null,null,null,null,null,null,null,null,null,null,null,null,null,null,null,null,null,null,null,null,null,null,null,null,null,null,null,null,null,null,null,null,null,null,null,null,null,null,null,null,null,"Let=L / Fehler=x"]
[]
["A",{"$f":"IF($B$8=\"\",\"\",$B$8)","v":""},null,null,null,null,null,null,null,null,null,null,null,null,null,null,null,null,null,null,null,null,null,null,null,null,null,null,null,null,null,null,null,null,null,null,null,null,null,null,null,null,null,null,null,null,null,null,null,null,null,null,null,null,null,null,"Aufschlag L/R"]
[null,null,null,null,null,null,null,null,null,null,null,null,null,null,null,null,null,null,null,null,null,null,null,null,null,null,null,null,null,null,null,null,null,null,null,null,null,null,null,null,null,null,null,null,null,null,null,null,null,null,null,null,null,null,null,null,"Punkte"]
["B",{"$f":"IF($B$10=\"\",\"\",$B$10)","v":""},null,null,null,null,null,null,null,null,null,null,null,null,null,null,null,null,null,null,null,null,null,null,null,null,null,null,null,null,null,null,null,null,null,null,null,null,null,null,null,null,null,null,null,null,null,null,null,null,null,null,null,null,null,null,"Punkte"]
[null,null,null,null,null,null,null,null,null,null,null,null,null,null,null,null,null,null,null,null,null,null,null,null,null,null,null,null,null,null,null,null,null,null,null,null,null,null,null,null,null,null,null,null,null,null,null,null,null,null,null,null,null,null,null,null,"Aufschlag L/R"]
[null,null,null,null,null,null,null,null,null,null,null,null,null,null,null,null,null,null,null,null,null,null,null,null,null,null,null,null,null,null,null,null,null,null,null,null,null,null,null,null,null,null,null,null,null,null,null,null,null,null,null,null,null,null,null,null,"Let=L / Fehler=x"]
[]
[null,null,null,null,null,null,null,null,null,null,null,null,null,null,null,null,null,null,null,null,null,null,null,null,null,null,null,null,null,null,null,null,null,null,null,null,null,null,null,null,null,null,null,null,null,null,null,null,null,null,null,null,null,null,null,null,"Let=L / Fehler=x"]
[]
["A",{"$f":"IF($B$8=\"\",\"\",$B$8)","v":""},null,null,null,null,null,null,null,null,null,null,null,null,null,null,null,null,null,null,null,null,null,null,null,null,null,null,null,null,null,null,null,null,null,null,null,null,null,null,null,null,null,null,null,null,null,null,null,null,null,null,null,null,null,null,"Aufschlag L/R"]
[null,null,null,null,null,null,null,null,null,null,null,null,null,null,null,null,null,null,null,null,null,null,null,null,null,null,null,null,null,null,null,null,null,null,null,null,null,null,null,null,null,null,null,null,null,null,null,null,null,null,null,null,null,null,null,null,"Punkte"]
["B",{"$f":"IF($B$10=\"\",\"\",$B$10)","v":""},null,null,null,null,null,null,null,null,null,null,null,null,null,null,null,null,null,null,null,null,null,null,null,null,null,null,null,null,null,null,null,null,null,null,null,null,null,null,null,null,null,null,null,null,null,null,null,null,null,null,null,null,null,null,"Punkte"]
[null,null,null,null,null,null,null,null,null,null,null,null,null,null,null,null,null,null,null,null,null,null,null,null,null,null,null,null,null,null,null,null,null,null,null,null,null,null,null,null,null,null,null,null,null,null,null,null,null,null,null,null,null,null,null,null,"Aufschlag L/R"]
[null,null,null,null,null,null,null,null,null,null,null,null,null,null,null,null,null,null,null,null,null,null,null,null,null,null,null,null,null,null,null,null,null,null,null,null,null,null,null,null,null,null,null,null,null,null,null,null,null,null,null,null,null,null,null,null,"Let=L / Fehler=x"]
[]
[null,null,null,null,null,null,null,null,null,null,null,null,null,null,null,null,null,null,null,null,null,null,null,null,null,null,null,null,null,null,null,null,null,null,null,null,null,null,null,null,null,null,null,null,null,null,null,null,null,null,null,null,null,null,null,null,"Let=L / Fehler=x"]
[]
["A",{"$f":"IF($B$8=\"\",\"\",$B$8)","v":""},null,null,null,null,null,null,null,null,null,null,null,null,null,null,null,null,null,null,null,null,null,null,null,null,null,null,null,null,null,null,null,null,null,null,null,null,null,null,null,null,null,null,null,null,null,null,null,null,null,null,null,null,null,null,"Aufschlag L/R"]
[null,null,null,null,null,null,null,null,null,null,null,null,null,null,null,null,null,null,null,null,null,null,null,null,null,null,null,null,null,null,null,null,null,null,null,null,null,null,null,null,null,null,null,null,null,null,null,null,null,null,null,null,null,null,null,null,"Punkte"]
["B",{"$f":"IF($B$10=\"\",\"\",$B$10)","v":""},null,null,null,null,null,null,null,null,null,null,null,null,null,null,null,null,null,null,null,null,null,null,null,null,null,null,null,null,null,null,null,null,null,null,null,null,null,null,null,null,null,null,null,null,null,null,null,null,null,null,null,null,null,null,"Punkte"]
[null,null,null,null,null,null,null,null,null,null,null,null,null,null,null,null,null,null,null,null,null,null,null,null,null,null,null,null,null,null,null,null,null,null,null,null,null,null,null,null,null,null,null,null,null,null,null,null,null,null,null,null,null,null,null,null,"Aufschlag L/R"]
[null,null,null,null,null,null,null,null,null,null,null,null,null,null,null,null,null,null,null,null,null,null,null,null,null,null,null,null,null,null,null,null,null,null,null,null,null,null,null,null,null,null,null,null,null,null,null,null,null,null,null,null,null,null,null,null,"Let=L / Fehler=x"]
[]
[null,null,null,null,null,null,null,null,null,null,null,null,null,null,null,null,null,null,null,null,null,null,null,null,null,null,null,null,null,null,null,null,null,null,null,null,null,null,null,null,null,null,null,null,null,null,null,null,null,null,null,null,null,null,null,null,"Let=L / Fehler=x"]
[]
["A",{"$f":"IF($B$8=\"\",\"\",$B$8)","v":""},null,null,null,null,null,null,null,null,null,null,null,null,null,null,null,null,null,null,null,null,null,null,null,null,null,null,null,null,null,null,null,null,null,null,null,null,null,null,null,null,null,null,null,null,null,null,null,null,null,null,null,null,null,null,"Aufschlag L/R"]
[null,null,null,null,null,null,null,null,null,null,null,null,null,null,null,null,null,null,null,null,null,null,null,null,null,null,null,null,null,null,null,null,null,null,null,null,null,null,null,null,null,null,null,null,null,null,null,null,null,null,null,null,null,null,null,null,"Punkte"]
["B",{"$f":"IF($B$10=\"\",\"\",$B$10)","v":""},null,null,null,null,null,null,null,null,null,null,null,null,null,null,null,null,null,null,null,null,null,null,null,null,null,null,null,null,null,null,null,null,null,null,null,null,null,null,null,null,null,null,null,null,null,null,null,null,null,null,null,null,null,null,"Punkte"]
[null,null,null,null,null,null,null,null,null,null,null,null,null,null,null,null,null,null,null,null,null,null,null,null,null,null,null,null,null,null,null,null,null,null,null,null,null,null,null,null,null,null,null,null,null,null,null,null,null,null,null,null,null,null,null,null,"Aufschlag L/R"]
[null,null,null,null,null,null,null,null,null,null,null,null,null,null,null,null,null,null,null,null,null,null,null,null,null,null,null,null,null,null,null,null,null,null,null,null,null,null,null,null,null,null,null,null,null,null,null,null,null,null,null,null,null,null,null,null,"Let=L / Fehler=x"]

{"sheet":"Paarung 2 | Spiel 3","index":7,"n_rows":55,"n_cols":57,"rows_kept":55,"cut":false,"hidden":false,"merged":[[1,1,2,27],[1,49,2,52],[1,53,2,55],[3,1,4,34],[3,46,4,48],[3,50,4,51],[5,46,6,48],[5,50,6,51],[7,0,8,0],[7,1,8,15],[7,16,8,30],[7,31,10,34],[7,46,8,48],[7,50,8,51],[9,0,10,0],[9,1,10,15],[18,0,19,0],[18,1,19,8],[18,56,18,60],[19,56,19,60],[9,16,10,30],[9,46,10,48],[9,50,10,51],[11,46,12,48],[11,50,12,51],[12,12,12,13],[12,14,12,15],[24,56,25,60],[13,12,14,13],[13,16,14,30],[13,31,14,43],[13,49,14,52],[16,56,17,60],[20,0,21,0],[20,1,21,8],[20,56,20,60],[21,56,21,60],[22,56,23,60],[26,0,27,0],[26,1,27,8],[26,56,26,60],[27,56,27,60],[28,0,29,0],[28,1,29,8],[28,56,28,60],[29,56,29,60],[40,56,41,60],[30,56,31,60],[32,56,33,60],[34,0,35,0],[34,1,35,8],[34,56,34,60],[35,56,35,60],[36,0,37,0],[36,1,37,8],[36,56,36,60],[37,56,37,60],[38,56,39,60],[42,0,43,0],[42,1,43,8],[42,56,42,60],[43,56,43,60],[44,0,45,0],[44,1,45,8],[44,56,44,60],[45,56,45,60],[46,56,47,60],[48,56,49,60],[50,0,51,0],[50,1,51,8],[50,56,50,60],[51,56,51,60],[52,0,53,0],[52,1,53,8],[52,56,52,60],[53,56,53,60],[54,56,55,60]]}
[]
[null,"Schiedsrichterformular",null,null,null,null,null,null,null,null,null,null,null,null,null,null,null,null,null,null,null,null,null,null,null,null,null,null,null,null,null,null,null,null,null,null,null,null,null,null,null,null,null,null,null,null,null,null,null,"Punkte",null,null,null,"Beginn\nUhrzeit"]
[]
[null,{"$f":"IF(Q8=\"\",\"\",\" Position \" & M14 & \":     \" & Q8 & \"   -   \" & Q10)","v":" Position 3:     Ulmer SC 3   -   Squash Devils 7"},null,null,null,null,null,null,null,null,null,null,null,null,null,null,null,null,null,null,null,null,null,null,null,null,null,null,null,null,null,null,null,null,null,null,null,null,null,null,null,null,null,null,null,null,"1. Satz",null,null,null,":"]
[]
[null,null,null,null,null,null,null,null,null,null,null,null,null,null,null,null,null,null,null,null,null,null,null,null,null,null,null,null,null,null,null,null,null,null,null,null,null,null,null,null,null,null,null,null,null,null,"2. Satz",null,null,null,":"]
[null,"Spielername",null,null,null,null,null,null,null,null,null,null,null,null,null,null,"Vereinsname",null,null,null,null,null,null,null,null,null,null,null,null,null,null,"Endergebnis"]
["A",null,null,null,null,null,null,null,null,null,null,null,null,null,null,null,"Ulmer SC 3",null,null,null,null,null,null,null,null,null,null,null,null,null,null,":",null,null,null,null,null,null,null,null,null,null,null,null,null,null,"3. Satz",null,null,null,":"]
[]
["B",null,null,null,null,null,null,null,null,null,null,null,null,null,null,null,"Squash Devils 7",null,null,null,null,null,null,null,null,null,null,null,null,null,null,null,null,null,null,null,null,null,null,null,null,null,null,null,null,null,"4. Satz",null,null,null,":"]
[]
[null,null,null,null,null,null,null,null,null,null,null,null,null,null,null,null,null,null,null,null,null,null,null,null,null,null,null,null,null,null,null,null,null,null,null,null,null,null,null,null,null,null,null,null,null,null,"5. Satz",null,null,null,":"]
[null,"Datum",null,null,null,null,null,null,null,null,null,null,"Position",null,"Court",null,"Schiedsrichter - Vereinsname",null,null,null,null,null,null,null,null,null,null,null,null,null,null,"Schiedsrichter (Position - Name)"]
[null,null,null,null,null,null,null,null,null,null,null,null,3,null,null,null,"Fun Point Gerlingen 2",null,null,null,null,null,null,null,null,null,null,null,null,null,null,"Pos. 3 - Marc Hartmann",null,null,null,null,null,null,null,null,null,null,null,null,null,null,null,null,null,"Spielende\nUhrzeit"]
[]
[]
[null,null,null,null,null,null,null,null,null,null,null,null,null,null,null,null,null,null,null,null,null,null,null,null,null,null,null,null,null,null,null,null,null,null,null,null,null,null,null,null,null,null,null,null,null,null,null,null,null,null,null,null,null,null,null,null,"Let=L / Fehler=x"]
[]
["A",{"$f":"IF($B$8=\"\",\"\",$B$8)","v":""},null,null,null,null,null,null,null,null,null,null,null,null,null,null,null,null,null,null,null,null,null,null,null,null,null,null,null,null,null,null,null,null,null,null,null,null,null,null,null,null,null,null,null,null,null,null,null,null,null,null,null,null,null,null,"Aufschlag L/R"]
[null,null,null,null,null,null,null,null,null,null,null,null,null,null,null,null,null,null,null,null,null,null,null,null,null,null,null,null,null,null,null,null,null,null,null,null,null,null,null,null,null,null,null,null,null,null,null,null,null,null,null,null,null,null,null,null,"Punkte"]
["B",{"$f":"IF($B$10=\"\",\"\",$B$10)","v":""},null,null,null,null,null,null,null,null,null,null,null,null,null,null,null,null,null,null,null,null,null,null,null,null,null,null,null,null,null,null,null,null,null,null,null,null,null,null,null,null,null,null,null,null,null,null,null,null,null,null,null,null,null,null,"Punkte"]
[null,null,null,null,null,null,null,null,null,null,null,null,null,null,null,null,null,null,null,null,null,null,null,null,null,null,null,null,null,null,null,null,null,null,null,null,null,null,null,null,null,null,null,null,null,null,null,null,null,null,null,null,null,null,null,null,"Aufschlag L/R"]
[null,null,null,null,null,null,null,null,null,null,null,null,null,null,null,null,null,null,null,null,null,null,null,null,null,null,null,null,null,null,null,null,null,null,null,null,null,null,null,null,null,null,null,null,null,null,null,null,null,null,null,null,null,null,null,null,"Let=L / Fehler=x"]
[]
[null,null,null,null,null,null,null,null,null,null,null,null,null,null,null,null,null,null,null,null,null,null,null,null,null,null,null,null,null,null,null,null,null,null,null,null,null,null,null,null,null,null,null,null,null,null,null,null,null,null,null,null,null,null,null,null,"Let=L / Fehler=x"]
[]
["A",{"$f":"IF($B$8=\"\",\"\",$B$8)","v":""},null,null,null,null,null,null,null,null,null,null,null,null,null,null,null,null,null,null,null,null,null,null,null,null,null,null,null,null,null,null,null,null,null,null,null,null,null,null,null,null,null,null,null,null,null,null,null,null,null,null,null,null,null,null,"Aufschlag L/R"]
[null,null,null,null,null,null,null,null,null,null,null,null,null,null,null,null,null,null,null,null,null,null,null,null,null,null,null,null,null,null,null,null,null,null,null,null,null,null,null,null,null,null,null,null,null,null,null,null,null,null,null,null,null,null,null,null,"Punkte"]
["B",{"$f":"IF($B$10=\"\",\"\",$B$10)","v":""},null,null,null,null,null,null,null,null,null,null,null,null,null,null,null,null,null,null,null,null,null,null,null,null,null,null,null,null,null,null,null,null,null,null,null,null,null,null,null,null,null,null,null,null,null,null,null,null,null,null,null,null,null,null,"Punkte"]
[null,null,null,null,null,null,null,null,null,null,null,null,null,null,null,null,null,null,null,null,null,null,null,null,null,null,null,null,null,null,null,null,null,null,null,null,null,null,null,null,null,null,null,null,null,null,null,null,null,null,null,null,null,null,null,null,"Aufschlag L/R"]
[null,null,null,null,null,null,null,null,null,null,null,null,null,null,null,null,null,null,null,null,null,null,null,null,null,null,null,null,null,null,null,null,null,null,null,null,null,null,null,null,null,null,null,null,null,null,null,null,null,null,null,null,null,null,null,null,"Let=L / Fehler=x"]
[]
[null,null,null,null,null,null,null,null,null,null,null,null,null,null,null,null,null,null,null,null,null,null,null,null,null,null,null,null,null,null,null,null,null,null,null,null,null,null,null,null,null,null,null,null,null,null,null,null,null,null,null,null,null,null,null,null,"Let=L / Fehler=x"]
[]
["A",{"$f":"IF($B$8=\"\",\"\",$B$8)","v":""},null,null,null,null,null,null,null,null,null,null,null,null,null,null,null,null,null,null,null,null,null,null,null,null,null,null,null,null,null,null,null,null,null,null,null,null,null,null,null,null,null,null,null,null,null,null,null,null,null,null,null,null,null,null,"Aufschlag L/R"]
[null,null,null,null,null,null,null,null,null,null,null,null,null,null,null,null,null,null,null,null,null,null,null,null,null,null,null,null,null,null,null,null,null,null,null,null,null,null,null,null,null,null,null,null,null,null,null,null,null,null,null,null,null,null,null,null,"Punkte"]
["B",{"$f":"IF($B$10=\"\",\"\",$B$10)","v":""},null,null,null,null,null,null,null,null,null,null,null,null,null,null,null,null,null,null,null,null,null,null,null,null,null,null,null,null,null,null,null,null,null,null,null,null,null,null,null,null,null,null,null,null,null,null,null,null,null,null,null,null,null,null,"Punkte"]
[null,null,null,null,null,null,null,null,null,null,null,null,null,null,null,null,null,null,null,null,null,null,null,null,null,null,null,null,null,null,null,null,null,null,null,null,null,null,null,null,null,null,null,null,null,null,null,null,null,null,null,null,null,null,null,null,"Aufschlag L/R"]
[null,null,null,null,null,null,null,null,null,null,null,null,null,null,null,null,null,null,null,null,null,null,null,null,null,null,null,null,null,null,null,null,null,null,null,null,null,null,null,null,null,null,null,null,null,null,null,null,null,null,null,null,null,null,null,null,"Let=L / Fehler=x"]
[]
[null,null,null,null,null,null,null,null,null,null,null,null,null,null,null,null,null,null,null,null,null,null,null,null,null,null,null,null,null,null,null,null,null,null,null,null,null,null,null,null,null,null,null,null,null,null,null,null,null,null,null,null,null,null,null,null,"Let=L / Fehler=x"]
[]
["A",{"$f":"IF($B$8=\"\",\"\",$B$8)","v":""},null,null,null,null,null,null,null,null,null,null,null,null,null,null,null,null,null,null,null,null,null,null,null,null,null,null,null,null,null,null,null,null,null,null,null,null,null,null,null,null,null,null,null,null,null,null,null,null,null,null,null,null,null,null,"Aufschlag L/R"]
[null,null,null,null,null,null,null,null,null,null,null,null,null,null,null,null,null,null,null,null,null,null,null,null,null,null,null,null,null,null,null,null,null,null,null,null,null,null,null,null,null,null,null,null,null,null,null,null,null,null,null,null,null,null,null,null,"Punkte"]
["B",{"$f":"IF($B$10=\"\",\"\",$B$10)","v":""},null,null,null,null,null,null,null,null,null,null,null,null,null,null,null,null,null,null,null,null,null,null,null,null,null,null,null,null,null,null,null,null,null,null,null,null,null,null,null,null,null,null,null,null,null,null,null,null,null,null,null,null,null,null,"Punkte"]
[null,null,null,null,null,null,null,null,null,null,null,null,null,null,null,null,null,null,null,null,null,null,null,null,null,null,null,null,null,null,null,null,null,null,null,null,null,null,null,null,null,null,null,null,null,null,null,null,null,null,null,null,null,null,null,null,"Aufschlag L/R"]
[null,null,null,null,null,null,null,null,null,null,null,null,null,null,null,null,null,null,null,null,null,null,null,null,null,null,null,null,null,null,null,null,null,null,null,null,null,null,null,null,null,null,null,null,null,null,null,null,null,null,null,null,null,null,null,null,"Let=L / Fehler=x"]
[]
[null,null,null,null,null,null,null,null,null,null,null,null,null,null,null,null,null,null,null,null,null,null,null,null,null,null,null,null,null,null,null,null,null,null,null,null,null,null,null,null,null,null,null,null,null,null,null,null,null,null,null,null,null,null,null,null,"Let=L / Fehler=x"]
[]
["A",{"$f":"IF($B$8=\"\",\"\",$B$8)","v":""},null,null,null,null,null,null,null,null,null,null,null,null,null,null,null,null,null,null,null,null,null,null,null,null,null,null,null,null,null,null,null,null,null,null,null,null,null,null,null,null,null,null,null,null,null,null,null,null,null,null,null,null,null,null,"Aufschlag L/R"]
[null,null,null,null,null,null,null,null,null,null,null,null,null,null,null,null,null,null,null,null,null,null,null,null,null,null,null,null,null,null,null,null,null,null,null,null,null,null,null,null,null,null,null,null,null,null,null,null,null,null,null,null,null,null,null,null,"Punkte"]
["B",{"$f":"IF($B$10=\"\",\"\",$B$10)","v":""},null,null,null,null,null,null,null,null,null,null,null,null,null,null,null,null,null,null,null,null,null,null,null,null,null,null,null,null,null,null,null,null,null,null,null,null,null,null,null,null,null,null,null,null,null,null,null,null,null,null,null,null,null,null,"Punkte"]
[null,null,null,null,null,null,null,null,null,null,null,null,null,null,null,null,null,null,null,null,null,null,null,null,null,null,null,null,null,null,null,null,null,null,null,null,null,null,null,null,null,null,null,null,null,null,null,null,null,null,null,null,null,null,null,null,"Aufschlag L/R"]
[null,null,null,null,null,null,null,null,null,null,null,null,null,null,null,null,null,null,null,null,null,null,null,null,null,null,null,null,null,null,null,null,null,null,null,null,null,null,null,null,null,null,null,null,null,null,null,null,null,null,null,null,null,null,null,null,"Let=L / Fehler=x"]

{"sheet":"Paarung 2 | Spiel 1","index":8,"n_rows":55,"n_cols":57,"rows_kept":55,"cut":false,"hidden":false,"merged":[[1,1,2,27],[1,49,2,52],[1,53,2,55],[3,1,4,34],[3,46,4,48],[3,50,4,51],[5,46,6,48],[5,50,6,51],[7,0,8,0],[7,1,8,15],[7,16,8,30],[7,31,10,34],[7,46,8,48],[7,50,8,51],[9,0,10,0],[9,1,10,15],[18,0,19,0],[18,1,19,8],[18,56,18,60],[19,56,19,60],[9,16,10,30],[9,46,10,48],[9,50,10,51],[11,46,12,48],[11,50,12,51],[12,12,12,13],[12,14,12,15],[24,56,25,60],[13,12,14,13],[13,16,14,30],[13,31,14,43],[13,49,14,52],[16,56,17,60],[20,0,21,0],[20,1,21,8],[20,56,20,60],[21,56,21,60],[22,56,23,60],[26,0,27,0],[26,1,27,8],[26,56,26,60],[27,56,27,60],[28,0,29,0],[28,1,29,8],[28,56,28,60],[29,56,29,60],[40,56,41,60],[30,56,31,60],[32,56,33,60],[34,0,35,0],[34,1,35,8],[34,56,34,60],[35,56,35,60],[36,0,37,0],[36,1,37,8],[36,56,36,60],[37,56,37,60],[38,56,39,60],[42,0,43,0],[42,1,43,8],[42,56,42,60],[43,56,43,60],[44,0,45,0],[44,1,45,8],[44,56,44,60],[45,56,45,60],[46,56,47,60],[48,56,49,60],[50,0,51,0],[50,1,51,8],[50,56,50,60],[51,56,51,60],[52,0,53,0],[52,1,53,8],[52,56,52,60],[53,56,53,60],[54,56,55,60]]}
[]
[null,"Schiedsrichterformular",null,null,null,null,null,null,null,null,null,null,null,null,null,null,null,null,null,null,null,null,null,null,null,null,null,null,null,null,null,null,null,null,null,null,null,null,null,null,null,null,null,null,null,null,null,null,null,"Punkte",null,null,null,"Beginn\nUhrzeit"]
[]
[null,{"$f":"IF(Q8=\"\",\"\",\" Position \" & M14 & \":     \" & Q8 & \"   -   \" & Q10)","v":" Position 1:     Ulmer SC 3   -   Squash Devils 7"},null,null,null,null,null,null,null,null,null,null,null,null,null,null,null,null,null,null,null,null,null,null,null,null,null,null,null,null,null,null,null,null,null,null,null,null,null,null,null,null,null,null,null,null,"1. Satz",null,null,null,":"]
[]
[null,null,null,null,null,null,null,null,null,null,null,null,null,null,null,null,null,null,null,null,null,null,null,null,null,null,null,null,null,null,null,null,null,null,null,null,null,null,null,null,null,null,null,null,null,null,"2. Satz",null,null,null,":"]
[null,"Spielername",null,null,null,null,null,null,null,null,null,null,null,null,null,null,"Vereinsname",null,null,null,null,null,null,null,null,null,null,null,null,null,null,"Endergebnis"]
["A",null,null,null,null,null,null,null,null,null,null,null,null,null,null,null,"Ulmer SC 3",null,null,null,null,null,null,null,null,null,null,null,null,null,null,":",null,null,null,null,null,null,null,null,null,null,null,null,null,null,"3. Satz",null,null,null,":"]
[]
["B",null,null,null,null,null,null,null,null,null,null,null,null,null,null,null,"Squash Devils 7",null,null,null,null,null,null,null,null,null,null,null,null,null,null,null,null,null,null,null,null,null,null,null,null,null,null,null,null,null,"4. Satz",null,null,null,":"]
[]
[null,null,null,null,null,null,null,null,null,null,null,null,null,null,null,null,null,null,null,null,null,null,null,null,null,null,null,null,null,null,null,null,null,null,null,null,null,null,null,null,null,null,null,null,null,null,"5. Satz",null,null,null,":"]
[null,"Datum",null,null,null,null,null,null,null,null,null,null,"Position",null,"Court",null,"Schiedsrichter - Vereinsname",null,null,null,null,null,null,null,null,null,null,null,null,null,null,"Schiedsrichter (Position - Name)"]
[null,null,null,null,null,null,null,null,null,null,null,null,1,null,null,null,"Fun Point Gerlingen 2",null,null,null,null,null,null,null,null,null,null,null,null,null,null,"Pos. 1 - Ralph Bieber",null,null,null,null,null,null,null,null,null,null,null,null,null,null,null,null,null,"Spielende\nUhrzeit"]
[]
[]
[null,null,null,null,null,null,null,null,null,null,null,null,null,null,null,null,null,null,null,null,null,null,null,null,null,null,null,null,null,null,null,null,null,null,null,null,null,null,null,null,null,null,null,null,null,null,null,null,null,null,null,null,null,null,null,null,"Let=L / Fehler=x"]
[]
["A",{"$f":"IF($B$8=\"\",\"\",$B$8)","v":""},null,null,null,null,null,null,null,null,null,null,null,null,null,null,null,null,null,null,null,null,null,null,null,null,null,null,null,null,null,null,null,null,null,null,null,null,null,null,null,null,null,null,null,null,null,null,null,null,null,null,null,null,null,null,"Aufschlag L/R"]
[null,null,null,null,null,null,null,null,null,null,null,null,null,null,null,null,null,null,null,null,null,null,null,null,null,null,null,null,null,null,null,null,null,null,null,null,null,null,null,null,null,null,null,null,null,null,null,null,null,null,null,null,null,null,null,null,"Punkte"]
["B",{"$f":"IF($B$10=\"\",\"\",$B$10)","v":""},null,null,null,null,null,null,null,null,null,null,null,null,null,null,null,null,null,null,null,null,null,null,null,null,null,null,null,null,null,null,null,null,null,null,null,null,null,null,null,null,null,null,null,null,null,null,null,null,null,null,null,null,null,null,"Punkte"]
[null,null,null,null,null,null,null,null,null,null,null,null,null,null,null,null,null,null,null,null,null,null,null,null,null,null,null,null,null,null,null,null,null,null,null,null,null,null,null,null,null,null,null,null,null,null,null,null,null,null,null,null,null,null,null,null,"Aufschlag L/R"]
[null,null,null,null,null,null,null,null,null,null,null,null,null,null,null,null,null,null,null,null,null,null,null,null,null,null,null,null,null,null,null,null,null,null,null,null,null,null,null,null,null,null,null,null,null,null,null,null,null,null,null,null,null,null,null,null,"Let=L / Fehler=x"]
[]
[null,null,null,null,null,null,null,null,null,null,null,null,null,null,null,null,null,null,null,null,null,null,null,null,null,null,null,null,null,null,null,null,null,null,null,null,null,null,null,null,null,null,null,null,null,null,null,null,null,null,null,null,null,null,null,null,"Let=L / Fehler=x"]
[]
["A",{"$f":"IF($B$8=\"\",\"\",$B$8)","v":""},null,null,null,null,null,null,null,null,null,null,null,null,null,null,null,null,null,null,null,null,null,null,null,null,null,null,null,null,null,null,null,null,null,null,null,null,null,null,null,null,null,null,null,null,null,null,null,null,null,null,null,null,null,null,"Aufschlag L/R"]
[null,null,null,null,null,null,null,null,null,null,null,null,null,null,null,null,null,null,null,null,null,null,null,null,null,null,null,null,null,null,null,null,null,null,null,null,null,null,null,null,null,null,null,null,null,null,null,null,null,null,null,null,null,null,null,null,"Punkte"]
["B",{"$f":"IF($B$10=\"\",\"\",$B$10)","v":""},null,null,null,null,null,null,null,null,null,null,null,null,null,null,null,null,null,null,null,null,null,null,null,null,null,null,null,null,null,null,null,null,null,null,null,null,null,null,null,null,null,null,null,null,null,null,null,null,null,null,null,null,null,null,"Punkte"]
[null,null,null,null,null,null,null,null,null,null,null,null,null,null,null,null,null,null,null,null,null,null,null,null,null,null,null,null,null,null,null,null,null,null,null,null,null,null,null,null,null,null,null,null,null,null,null,null,null,null,null,null,null,null,null,null,"Aufschlag L/R"]
[null,null,null,null,null,null,null,null,null,null,null,null,null,null,null,null,null,null,null,null,null,null,null,null,null,null,null,null,null,null,null,null,null,null,null,null,null,null,null,null,null,null,null,null,null,null,null,null,null,null,null,null,null,null,null,null,"Let=L / Fehler=x"]
[]
[null,null,null,null,null,null,null,null,null,null,null,null,null,null,null,null,null,null,null,null,null,null,null,null,null,null,null,null,null,null,null,null,null,null,null,null,null,null,null,null,null,null,null,null,null,null,null,null,null,null,null,null,null,null,null,null,"Let=L / Fehler=x"]
[]
["A",{"$f":"IF($B$8=\"\",\"\",$B$8)","v":""},null,null,null,null,null,null,null,null,null,null,null,null,null,null,null,null,null,null,null,null,null,null,null,null,null,null,null,null,null,null,null,null,null,null,null,null,null,null,null,null,null,null,null,null,null,null,null,null,null,null,null,null,null,null,"Aufschlag L/R"]
[null,null,null,null,null,null,null,null,null,null,null,null,null,null,null,null,null,null,null,null,null,null,null,null,null,null,null,null,null,null,null,null,null,null,null,null,null,null,null,null,null,null,null,null,null,null,null,null,null,null,null,null,null,null,null,null,"Punkte"]
["B",{"$f":"IF($B$10=\"\",\"\",$B$10)","v":""},null,null,null,null,null,null,null,null,null,null,null,null,null,null,null,null,null,null,null,null,null,null,null,null,null,null,null,null,null,null,null,null,null,null,null,null,null,null,null,null,null,null,null,null,null,null,null,null,null,null,null,null,null,null,"Punkte"]
[null,null,null,null,null,null,null,null,null,null,null,null,null,null,null,null,null,null,null,null,null,null,null,null,null,null,null,null,null,null,null,null,null,null,null,null,null,null,null,null,null,null,null,null,null,null,null,null,null,null,null,null,null,null,null,null,"Aufschlag L/R"]
[null,null,null,null,null,null,null,null,null,null,null,null,null,null,null,null,null,null,null,null,null,null,null,null,null,null,null,null,null,null,null,null,null,null,null,null,null,null,null,null,null,null,null,null,null,null,null,null,null,null,null,null,null,null,null,null,"Let=L / Fehler=x"]
[]
[null,null,null,null,null,null,null,null,null,null,null,null,null,null,null,null,null,null,null,null,null,null,null,null,null,null,null,null,null,null,null,null,null,null,null,null,null,null,null,null,null,null,null,null,null,null,null,null,null,null,null,null,null,null,null,null,"Let=L / Fehler=x"]
[]
["A",{"$f":"IF($B$8=\"\",\"\",$B$8)","v":""},null,null,null,null,null,null,null,null,null,null,null,null,null,null,null,null,null,null,null,null,null,null,null,null,null,null,null,null,null,null,null,null,null,null,null,null,null,null,null,null,null,null,null,null,null,null,null,null,null,null,null,null,null,null,"Aufschlag L/R"]
[null,null,null,null,null,null,null,null,null,null,null,null,null,null,null,null,null,null,null,null,null,null,null,null,null,null,null,null,null,null,null,null,null,null,null,null,null,null,null,null,null,null,null,null,null,null,null,null,null,null,null,null,null,null,null,null,"Punkte"]
["B",{"$f":"IF($B$10=\"\",\"\",$B$10)","v":""},null,null,null,null,null,null,null,null,null,null,null,null,null,null,null,null,null,null,null,null,null,null,null,null,null,null,null,null,null,null,null,null,null,null,null,null,null,null,null,null,null,null,null,null,null,null,null,null,null,null,null,null,null,null,"Punkte"]
[null,null,null,null,null,null,null,null,null,null,null,null,null,null,null,null,null,null,null,null,null,null,null,null,null,null,null,null,null,null,null,null,null,null,null,null,null,null,null,null,null,null,null,null,null,null,null,null,null,null,null,null,null,null,null,null,"Aufschlag L/R"]
[null,null,null,null,null,null,null,null,null,null,null,null,null,null,null,null,null,null,null,null,null,null,null,null,null,null,null,null,null,null,null,null,null,null,null,null,null,null,null,null,null,null,null,null,null,null,null,null,null,null,null,null,null,null,null,null,"Let=L / Fehler=x"]
[]
[null,null,null,null,null,null,null,null,null,null,null,null,null,null,null,null,null,null,null,null,null,null,null,null,null,null,null,null,null,null,null,null,null,null,null,null,null,null,null,null,null,null,null,null,null,null,null,null,null,null,null,null,null,null,null,null,"Let=L / Fehler=x"]
[]
["A",{"$f":"IF($B$8=\"\",\"\",$B$8)","v":""},null,null,null,null,null,null,null,null,null,null,null,null,null,null,null,null,null,null,null,null,null,null,null,null,null,null,null,null,null,null,null,null,null,null,null,null,null,null,null,null,null,null,null,null,null,null,null,null,null,null,null,null,null,null,"Aufschlag L/R"]
[null,null,null,null,null,null,null,null,null,null,null,null,null,null,null,null,null,null,null,null,null,null,null,null,null,null,null,null,null,null,null,null,null,null,null,null,null,null,null,null,null,null,null,null,null,null,null,null,null,null,null,null,null,null,null,null,"Punkte"]
["B",{"$f":"IF($B$10=\"\",\"\",$B$10)","v":""},null,null,null,null,null,null,null,null,null,null,null,null,null,null,null,null,null,null,null,null,null,null,null,null,null,null,null,null,null,null,null,null,null,null,null,null,null,null,null,null,null,null,null,null,null,null,null,null,null,null,null,null,null,null,"Punkte"]
[null,null,null,null,null,null,null,null,null,null,null,null,null,null,null,null,null,null,null,null,null,null,null,null,null,null,null,null,null,null,null,null,null,null,null,null,null,null,null,null,null,null,null,null,null,null,null,null,null,null,null,null,null,null,null,null,"Aufschlag L/R"]
[null,null,null,null,null,null,null,null,null,null,null,null,null,null,null,null,null,null,null,null,null,null,null,null,null,null,null,null,null,null,null,null,null,null,null,null,null,null,null,null,null,null,null,null,null,null,null,null,null,null,null,null,null,null,null,null,"Let=L / Fehler=x"]

{"sheet":"Paarung 2 | Spiel 2","index":9,"n_rows":55,"n_cols":57,"rows_kept":55,"cut":false,"hidden":false,"merged":[[1,1,2,27],[1,49,2,52],[1,53,2,55],[3,1,4,34],[3,46,4,48],[3,50,4,51],[5,46,6,48],[5,50,6,51],[7,0,8,0],[7,1,8,15],[7,16,8,30],[7,31,10,34],[7,46,8,48],[7,50,8,51],[9,0,10,0],[9,1,10,15],[18,0,19,0],[18,1,19,8],[18,56,18,60],[19,56,19,60],[9,16,10,30],[9,46,10,48],[9,50,10,51],[11,46,12,48],[11,50,12,51],[12,12,12,13],[12,14,12,15],[24,56,25,60],[13,12,14,13],[13,16,14,30],[13,31,14,43],[13,49,14,52],[16,56,17,60],[20,0,21,0],[20,1,21,8],[20,56,20,60],[21,56,21,60],[22,56,23,60],[26,0,27,0],[26,1,27,8],[26,56,26,60],[27,56,27,60],[28,0,29,0],[28,1,29,8],[28,56,28,60],[29,56,29,60],[40,56,41,60],[30,56,31,60],[32,56,33,60],[34,0,35,0],[34,1,35,8],[34,56,34,60],[35,56,35,60],[36,0,37,0],[36,1,37,8],[36,56,36,60],[37,56,37,60],[38,56,39,60],[42,0,43,0],[42,1,43,8],[42,56,42,60],[43,56,43,60],[44,0,45,0],[44,1,45,8],[44,56,44,60],[45,56,45,60],[46,56,47,60],[48,56,49,60],[50,0,51,0],[50,1,51,8],[50,56,50,60],[51,56,51,60],[52,0,53,0],[52,1,53,8],[52,56,52,60],[53,56,53,60],[54,56,55,60]]}
[]
[null,"Schiedsrichterformular",null,null,null,null,null,null,null,null,null,null,null,null,null,null,null,null,null,null,null,null,null,null,null,null,null,null,null,null,null,null,null,null,null,null,null,null,null,null,null,null,null,null,null,null,null,null,null,"Punkte",null,null,null,"Beginn\nUhrzeit"]
[]
[null,{"$f":"IF(Q8=\"\",\"\",\" Position \" & M14 & \":     \" & Q8 & \"   -   \" & Q10)","v":" Position 2:     Ulmer SC 3   -   Squash Devils 7"},null,null,null,null,null,null,null,null,null,null,null,null,null,null,null,null,null,null,null,null,null,null,null,null,null,null,null,null,null,null,null,null,null,null,null,null,null,null,null,null,null,null,null,null,"1. Satz",null,null,null,":"]
[]
[null,null,null,null,null,null,null,null,null,null,null,null,null,null,null,null,null,null,null,null,null,null,null,null,null,null,null,null,null,null,null,null,null,null,null,null,null,null,null,null,null,null,null,null,null,null,"2. Satz",null,null,null,":"]
[null,"Spielername",null,null,null,null,null,null,null,null,null,null,null,null,null,null,"Vereinsname",null,null,null,null,null,null,null,null,null,null,null,null,null,null,"Endergebnis"]
["A",null,null,null,null,null,null,null,null,null,null,null,null,null,null,null,"Ulmer SC 3",null,null,null,null,null,null,null,null,null,null,null,null,null,null,":",null,null,null,null,null,null,null,null,null,null,null,null,null,null,"3. Satz",null,null,null,":"]
[]
["B",null,null,null,null,null,null,null,null,null,null,null,null,null,null,null,"Squash Devils 7",null,null,null,null,null,null,null,null,null,null,null,null,null,null,null,null,null,null,null,null,null,null,null,null,null,null,null,null,null,"4. Satz",null,null,null,":"]
[]
[null,null,null,null,null,null,null,null,null,null,null,null,null,null,null,null,null,null,null,null,null,null,null,null,null,null,null,null,null,null,null,null,null,null,null,null,null,null,null,null,null,null,null,null,null,null,"5. Satz",null,null,null,":"]
[null,"Datum",null,null,null,null,null,null,null,null,null,null,"Position",null,"Court",null,"Schiedsrichter - Vereinsname",null,null,null,null,null,null,null,null,null,null,null,null,null,null,"Schiedsrichter (Position - Name)"]
[null,null,null,null,null,null,null,null,null,null,null,null,2,null,null,null,"Fun Point Gerlingen 2",null,null,null,null,null,null,null,null,null,null,null,null,null,null,"Pos. 2 - Rainer Ginzel",null,null,null,null,null,null,null,null,null,null,null,null,null,null,null,null,null,"Spielende\nUhrzeit"]
[]
[]
[null,null,null,null,null,null,null,null,null,null,null,null,null,null,null,null,null,null,null,null,null,null,null,null,null,null,null,null,null,null,null,null,null,null,null,null,null,null,null,null,null,null,null,null,null,null,null,null,null,null,null,null,null,null,null,null,"Let=L / Fehler=x"]
[]
["A",{"$f":"IF($B$8=\"\",\"\",$B$8)","v":""},null,null,null,null,null,null,null,null,null,null,null,null,null,null,null,null,null,null,null,null,null,null,null,null,null,null,null,null,null,null,null,null,null,null,null,null,null,null,null,null,null,null,null,null,null,null,null,null,null,null,null,null,null,null,"Aufschlag L/R"]
[null,null,null,null,null,null,null,null,null,null,null,null,null,null,null,null,null,null,null,null,null,null,null,null,null,null,null,null,null,null,null,null,null,null,null,null,null,null,null,null,null,null,null,null,null,null,null,null,null,null,null,null,null,null,null,null,"Punkte"]
["B",{"$f":"IF($B$10=\"\",\"\",$B$10)","v":""},null,null,null,null,null,null,null,null,null,null,null,null,null,null,null,null,null,null,null,null,null,null,null,null,null,null,null,null,null,null,null,null,null,null,null,null,null,null,null,null,null,null,null,null,null,null,null,null,null,null,null,null,null,null,"Punkte"]
[null,null,null,null,null,null,null,null,null,null,null,null,null,null,null,null,null,null,null,null,null,null,null,null,null,null,null,null,null,null,null,null,null,null,null,null,null,null,null,null,null,null,null,null,null,null,null,null,null,null,null,null,null,null,null,null,"Aufschlag L/R"]
[null,null,null,null,null,null,null,null,null,null,null,null,null,null,null,null,null,null,null,null,null,null,null,null,null,null,null,null,null,null,null,null,null,null,null,null,null,null,null,null,null,null,null,null,null,null,null,null,null,null,null,null,null,null,null,null,"Let=L / Fehler=x"]
[]
[null,null,null,null,null,null,null,null,null,null,null,null,null,null,null,null,null,null,null,null,null,null,null,null,null,null,null,null,null,null,null,null,null,null,null,null,null,null,null,null,null,null,null,null,null,null,null,null,null,null,null,null,null,null,null,null,"Let=L / Fehler=x"]
[]
["A",{"$f":"IF($B$8=\"\",\"\",$B$8)","v":""},null,null,null,null,null,null,null,null,null,null,null,null,null,null,null,null,null,null,null,null,null,null,null,null,null,null,null,null,null,null,null,null,null,null,null,null,null,null,null,null,null,null,null,null,null,null,null,null,null,null,null,null,null,null,"Aufschlag L/R"]
[null,null,null,null,null,null,null,null,null,null,null,null,null,null,null,null,null,null,null,null,null,null,null,null,null,null,null,null,null,null,null,null,null,null,null,null,null,null,null,null,null,null,null,null,null,null,null,null,null,null,null,null,null,null,null,null,"Punkte"]
["B",{"$f":"IF($B$10=\"\",\"\",$B$10)","v":""},null,null,null,null,null,null,null,null,null,null,null,null,null,null,null,null,null,null,null,null,null,null,null,null,null,null,null,null,null,null,null,null,null,null,null,null,null,null,null,null,null,null,null,null,null,null,null,null,null,null,null,null,null,null,"Punkte"]
[null,null,null,null,null,null,null,null,null,null,null,null,null,null,null,null,null,null,null,null,null,null,null,null,null,null,null,null,null,null,null,null,null,null,null,null,null,null,null,null,null,null,null,null,null,null,null,null,null,null,null,null,null,null,null,null,"Aufschlag L/R"]
[null,null,null,null,null,null,null,null,null,null,null,null,null,null,null,null,null,null,null,null,null,null,null,null,null,null,null,null,null,null,null,null,null,null,null,null,null,null,null,null,null,null,null,null,null,null,null,null,null,null,null,null,null,null,null,null,"Let=L / Fehler=x"]
[]
[null,null,null,null,null,null,null,null,null,null,null,null,null,null,null,null,null,null,null,null,null,null,null,null,null,null,null,null,null,null,null,null,null,null,null,null,null,null,null,null,null,null,null,null,null,null,null,null,null,null,null,null,null,null,null,null,"Let=L / Fehler=x"]
[]
["A",{"$f":"IF($B$8=\"\",\"\",$B$8)","v":""},null,null,null,null,null,null,null,null,null,null,null,null,null,null,null,null,null,null,null,null,null,null,null,null,null,null,null,null,null,null,null,null,null,null,null,null,null,null,null,null,null,null,null,null,null,null,null,null,null,null,null,null,null,null,"Aufschlag L/R"]
[null,null,null,null,null,null,null,null,null,null,null,null,null,null,null,null,null,null,null,null,null,null,null,null,null,null,null,null,null,null,null,null,null,null,null,null,null,null,null,null,null,null,null,null,null,null,null,null,null,null,null,null,null,null,null,null,"Punkte"]
["B",{"$f":"IF($B$10=\"\",\"\",$B$10)","v":""},null,null,null,null,null,null,null,null,null,null,null,null,null,null,null,null,null,null,null,null,null,null,null,null,null,null,null,null,null,null,null,null,null,null,null,null,null,null,null,null,null,null,null,null,null,null,null,null,null,null,null,null,null,null,"Punkte"]
[null,null,null,null,null,null,null,null,null,null,null,null,null,null,null,null,null,null,null,null,null,null,null,null,null,null,null,null,null,null,null,null,null,null,null,null,null,null,null,null,null,null,null,null,null,null,null,null,null,null,null,null,null,null,null,null,"Aufschlag L/R"]
[null,null,null,null,null,null,null,null,null,null,null,null,null,null,null,null,null,null,null,null,null,null,null,null,null,null,null,null,null,null,null,null,null,null,null,null,null,null,null,null,null,null,null,null,null,null,null,null,null,null,null,null,null,null,null,null,"Let=L / Fehler=x"]
[]
[null,null,null,null,null,null,null,null,null,null,null,null,null,null,null,null,null,null,null,null,null,null,null,null,null,null,null,null,null,null,null,null,null,null,null,null,null,null,null,null,null,null,null,null,null,null,null,null,null,null,null,null,null,null,null,null,"Let=L / Fehler=x"]
[]
["A",{"$f":"IF($B$8=\"\",\"\",$B$8)","v":""},null,null,null,null,null,null,null,null,null,null,null,null,null,null,null,null,null,null,null,null,null,null,null,null,null,null,null,null,null,null,null,null,null,null,null,null,null,null,null,null,null,null,null,null,null,null,null,null,null,null,null,null,null,null,"Aufschlag L/R"]
[null,null,null,null,null,null,null,null,null,null,null,null,null,null,null,null,null,null,null,null,null,null,null,null,null,null,null,null,null,null,null,null,null,null,null,null,null,null,null,null,null,null,null,null,null,null,null,null,null,null,null,null,null,null,null,null,"Punkte"]
["B",{"$f":"IF($B$10=\"\",\"\",$B$10)","v":""},null,null,null,null,null,null,null,null,null,null,null,null,null,null,null,null,null,null,null,null,null,null,null,null,null,null,null,null,null,null,null,null,null,null,null,null,null,null,null,null,null,null,null,null,null,null,null,null,null,null,null,null,null,null,"Punkte"]
[null,null,null,null,null,null,null,null,null,null,null,null,null,null,null,null,null,null,null,null,null,null,null,null,null,null,null,null,null,null,null,null,null,null,null,null,null,null,null,null,null,null,null,null,null,null,null,null,null,null,null,null,null,null,null,null,"Aufschlag L/R"]
[null,null,null,null,null,null,null,null,null,null,null,null,null,null,null,null,null,null,null,null,null,null,null,null,null,null,null,null,null,null,null,null,null,null,null,null,null,null,null,null,null,null,null,null,null,null,null,null,null,null,null,null,null,null,null,null,"Let=L / Fehler=x"]
[]
[null,null,null,null,null,null,null,null,null,null,null,null,null,null,null,null,null,null,null,null,null,null,null,null,null,null,null,null,null,null,null,null,null,null,null,null,null,null,null,null,null,null,null,null,null,null,null,null,null,null,null,null,null,null,null,null,"Let=L / Fehler=x"]
[]
["A",{"$f":"IF($B$8=\"\",\"\",$B$8)","v":""},null,null,null,null,null,null,null,null,null,null,null,null,null,null,null,null,null,null,null,null,null,null,null,null,null,null,null,null,null,null,null,null,null,null,null,null,null,null,null,null,null,null,null,null,null,null,null,null,null,null,null,null,null,null,"Aufschlag L/R"]
[null,null,null,null,null,null,null,null,null,null,null,null,null,null,null,null,null,null,null,null,null,null,null,null,null,null,null,null,null,null,null,null,null,null,null,null,null,null,null,null,null,null,null,null,null,null,null,null,null,null,null,null,null,null,null,null,"Punkte"]
["B",{"$f":"IF($B$10=\"\",\"\",$B$10)","v":""},null,null,null,null,null,null,null,null,null,null,null,null,null,null,null,null,null,null,null,null,null,null,null,null,null,null,null,null,null,null,null,null,null,null,null,null,null,null,null,null,null,null,null,null,null,null,null,null,null,null,null,null,null,null,"Punkte"]
[null,null,null,null,null,null,null,null,null,null,null,null,null,null,null,null,null,null,null,null,null,null,null,null,null,null,null,null,null,null,null,null,null,null,null,null,null,null,null,null,null,null,null,null,null,null,null,null,null,null,null,null,null,null,null,null,"Aufschlag L/R"]
[null,null,null,null,null,null,null,null,null,null,null,null,null,null,null,null,null,null,null,null,null,null,null,null,null,null,null,null,null,null,null,null,null,null,null,null,null,null,null,null,null,null,null,null,null,null,null,null,null,null,null,null,null,null,null,null,"Let=L / Fehler=x"]

{"sheet":"Paarung 3 | Spiel 4","index":10,"n_rows":55,"n_cols":57,"rows_kept":55,"cut":false,"hidden":false,"merged":[[1,1,2,27],[1,49,2,52],[1,53,2,55],[3,1,4,34],[3,46,4,48],[3,50,4,51],[5,46,6,48],[5,50,6,51],[7,0,8,0],[7,1,8,15],[7,16,8,30],[7,31,10,34],[7,46,8,48],[7,50,8,51],[9,0,10,0],[9,1,10,15],[18,0,19,0],[18,1,19,8],[18,56,18,60],[19,56,19,60],[9,16,10,30],[9,46,10,48],[9,50,10,51],[11,46,12,48],[11,50,12,51],[12,12,12,13],[12,14,12,15],[24,56,25,60],[13,12,14,13],[13,16,14,30],[13,31,14,43],[13,49,14,52],[16,56,17,60],[20,0,21,0],[20,1,21,8],[20,56,20,60],[21,56,21,60],[22,56,23,60],[26,0,27,0],[26,1,27,8],[26,56,26,60],[27,56,27,60],[28,0,29,0],[28,1,29,8],[28,56,28,60],[29,56,29,60],[40,56,41,60],[30,56,31,60],[32,56,33,60],[34,0,35,0],[34,1,35,8],[34,56,34,60],[35,56,35,60],[36,0,37,0],[36,1,37,8],[36,56,36,60],[37,56,37,60],[38,56,39,60],[42,0,43,0],[42,1,43,8],[42,56,42,60],[43,56,43,60],[44,0,45,0],[44,1,45,8],[44,56,44,60],[45,56,45,60],[46,56,47,60],[48,56,49,60],[50,0,51,0],[50,1,51,8],[50,56,50,60],[51,56,51,60],[52,0,53,0],[52,1,53,8],[52,56,52,60],[53,56,53,60],[54,56,55,60]]}
[]
[null,"Schiedsrichterformular",null,null,null,null,null,null,null,null,null,null,null,null,null,null,null,null,null,null,null,null,null,null,null,null,null,null,null,null,null,null,null,null,null,null,null,null,null,null,null,null,null,null,null,null,null,null,null,"Punkte",null,null,null,"Beginn\nUhrzeit"]
[]
[null,{"$f":"IF(Q8=\"\",\"\",\" Position \" & M14 & \":     \" & Q8 & \"   -   \" & Q10)","v":" Position 4:     Fun Point Gerlingen 2   -   Squash Devils 7"},null,null,null,null,null,null,null,null,null,null,null,null,null,null,null,null,null,null,null,null,null,null,null,null,null,null,null,null,null,null,null,null,null,null,null,null,null,null,null,null,null,null,null,null,"1. Satz",null,null,null,":"]
[]
[null,null,null,null,null,null,null,null,null,null,null,null,null,null,null,null,null,null,null,null,null,null,null,null,null,null,null,null,null,null,null,null,null,null,null,null,null,null,null,null,null,null,null,null,null,null,"2. Satz",null,null,null,":"]
[null,"Spielername",null,null,null,null,null,null,null,null,null,null,null,null,null,null,"Vereinsname",null,null,null,null,null,null,null,null,null,null,null,null,null,null,"Endergebnis"]
["A","Axel Nieder",null,null,null,null,null,null,null,null,null,null,null,null,null,null,"Fun Point Gerlingen 2",null,null,null,null,null,null,null,null,null,null,null,null,null,null,":",null,null,null,null,null,null,null,null,null,null,null,null,null,null,"3. Satz",null,null,null,":"]
[]
["B",null,null,null,null,null,null,null,null,null,null,null,null,null,null,null,"Squash Devils 7",null,null,null,null,null,null,null,null,null,null,null,null,null,null,null,null,null,null,null,null,null,null,null,null,null,null,null,null,null,"4. Satz",null,null,null,":"]
[]
[null,null,null,null,null,null,null,null,null,null,null,null,null,null,null,null,null,null,null,null,null,null,null,null,null,null,null,null,null,null,null,null,null,null,null,null,null,null,null,null,null,null,null,null,null,null,"5. Satz",null,null,null,":"]
[null,"Datum",null,null,null,null,null,null,null,null,null,null,"Position",null,"Court",null,"Schiedsrichter - Vereinsname",null,null,null,null,null,null,null,null,null,null,null,null,null,null,"Schiedsrichter (Position - Name)"]
[null,null,null,null,null,null,null,null,null,null,null,null,4,null,null,null,"Ulmer SC 3",null,null,null,null,null,null,null,null,null,null,null,null,null,null,"Pos. 4 - ",null,null,null,null,null,null,null,null,null,null,null,null,null,null,null,null,null,"Spielende\nUhrzeit"]
[]
[]
[null,null,null,null,null,null,null,null,null,null,null,null,null,null,null,null,null,null,null,null,null,null,null,null,null,null,null,null,null,null,null,null,null,null,null,null,null,null,null,null,null,null,null,null,null,null,null,null,null,null,null,null,null,null,null,null,"Let=L / Fehler=x"]
[]
["A",{"$f":"IF($B$8=\"\",\"\",$B$8)","v":"Axel Nieder"},null,null,null,null,null,null,null,null,null,null,null,null,null,null,null,null,null,null,null,null,null,null,null,null,null,null,null,null,null,null,null,null,null,null,null,null,null,null,null,null,null,null,null,null,null,null,null,null,null,null,null,null,null,null,"Aufschlag L/R"]
[null,null,null,null,null,null,null,null,null,null,null,null,null,null,null,null,null,null,null,null,null,null,null,null,null,null,null,null,null,null,null,null,null,null,null,null,null,null,null,null,null,null,null,null,null,null,null,null,null,null,null,null,null,null,null,null,"Punkte"]
["B",{"$f":"IF($B$10=\"\",\"\",$B$10)","v":""},null,null,null,null,null,null,null,null,null,null,null,null,null,null,null,null,null,null,null,null,null,null,null,null,null,null,null,null,null,null,null,null,null,null,null,null,null,null,null,null,null,null,null,null,null,null,null,null,null,null,null,null,null,null,"Punkte"]
[null,null,null,null,null,null,null,null,null,null,null,null,null,null,null,null,null,null,null,null,null,null,null,null,null,null,null,null,null,null,null,null,null,null,null,null,null,null,null,null,null,null,null,null,null,null,null,null,null,null,null,null,null,null,null,null,"Aufschlag L/R"]
[null,null,null,null,null,null,null,null,null,null,null,null,null,null,null,null,null,null,null,null,null,null,null,null,null,null,null,null,null,null,null,null,null,null,null,null,null,null,null,null,null,null,null,null,null,null,null,null,null,null,null,null,null,null,null,null,"Let=L / Fehler=x"]
[]
[null,null,null,null,null,null,null,null,null,null,null,null,null,null,null,null,null,null,null,null,null,null,null,null,null,null,null,null,null,null,null,null,null,null,null,null,null,null,null,null,null,null,null,null,null,null,null,null,null,null,null,null,null,null,null,null,"Let=L / Fehler=x"]
[]
["A",{"$f":"IF($B$8=\"\",\"\",$B$8)","v":"Axel Nieder"},null,null,null,null,null,null,null,null,null,null,null,null,null,null,null,null,null,null,null,null,null,null,null,null,null,null,null,null,null,null,null,null,null,null,null,null,null,null,null,null,null,null,null,null,null,null,null,null,null,null,null,null,null,null,"Aufschlag L/R"]
[null,null,null,null,null,null,null,null,null,null,null,null,null,null,null,null,null,null,null,null,null,null,null,null,null,null,null,null,null,null,null,null,null,null,null,null,null,null,null,null,null,null,null,null,null,null,null,null,null,null,null,null,null,null,null,null,"Punkte"]
["B",{"$f":"IF($B$10=\"\",\"\",$B$10)","v":""},null,null,null,null,null,null,null,null,null,null,null,null,null,null,null,null,null,null,null,null,null,null,null,null,null,null,null,null,null,null,null,null,null,null,null,null,null,null,null,null,null,null,null,null,null,null,null,null,null,null,null,null,null,null,"Punkte"]
[null,null,null,null,null,null,null,null,null,null,null,null,null,null,null,null,null,null,null,null,null,null,null,null,null,null,null,null,null,null,null,null,null,null,null,null,null,null,null,null,null,null,null,null,null,null,null,null,null,null,null,null,null,null,null,null,"Aufschlag L/R"]
[null,null,null,null,null,null,null,null,null,null,null,null,null,null,null,null,null,null,null,null,null,null,null,null,null,null,null,null,null,null,null,null,null,null,null,null,null,null,null,null,null,null,null,null,null,null,null,null,null,null,null,null,null,null,null,null,"Let=L / Fehler=x"]
[]
[null,null,null,null,null,null,null,null,null,null,null,null,null,null,null,null,null,null,null,null,null,null,null,null,null,null,null,null,null,null,null,null,null,null,null,null,null,null,null,null,null,null,null,null,null,null,null,null,null,null,null,null,null,null,null,null,"Let=L / Fehler=x"]
[]
["A",{"$f":"IF($B$8=\"\",\"\",$B$8)","v":"Axel Nieder"},null,null,null,null,null,null,null,null,null,null,null,null,null,null,null,null,null,null,null,null,null,null,null,null,null,null,null,null,null,null,null,null,null,null,null,null,null,null,null,null,null,null,null,null,null,null,null,null,null,null,null,null,null,null,"Aufschlag L/R"]
[null,null,null,null,null,null,null,null,null,null,null,null,null,null,null,null,null,null,null,null,null,null,null,null,null,null,null,null,null,null,null,null,null,null,null,null,null,null,null,null,null,null,null,null,null,null,null,null,null,null,null,null,null,null,null,null,"Punkte"]
["B",{"$f":"IF($B$10=\"\",\"\",$B$10)","v":""},null,null,null,null,null,null,null,null,null,null,null,null,null,null,null,null,null,null,null,null,null,null,null,null,null,null,null,null,null,null,null,null,null,null,null,null,null,null,null,null,null,null,null,null,null,null,null,null,null,null,null,null,null,null,"Punkte"]
[null,null,null,null,null,null,null,null,null,null,null,null,null,null,null,null,null,null,null,null,null,null,null,null,null,null,null,null,null,null,null,null,null,null,null,null,null,null,null,null,null,null,null,null,null,null,null,null,null,null,null,null,null,null,null,null,"Aufschlag L/R"]
[null,null,null,null,null,null,null,null,null,null,null,null,null,null,null,null,null,null,null,null,null,null,null,null,null,null,null,null,null,null,null,null,null,null,null,null,null,null,null,null,null,null,null,null,null,null,null,null,null,null,null,null,null,null,null,null,"Let=L / Fehler=x"]
[]
[null,null,null,null,null,null,null,null,null,null,null,null,null,null,null,null,null,null,null,null,null,null,null,null,null,null,null,null,null,null,null,null,null,null,null,null,null,null,null,null,null,null,null,null,null,null,null,null,null,null,null,null,null,null,null,null,"Let=L / Fehler=x"]
[]
["A",{"$f":"IF($B$8=\"\",\"\",$B$8)","v":"Axel Nieder"},null,null,null,null,null,null,null,null,null,null,null,null,null,null,null,null,null,null,null,null,null,null,null,null,null,null,null,null,null,null,null,null,null,null,null,null,null,null,null,null,null,null,null,null,null,null,null,null,null,null,null,null,null,null,"Aufschlag L/R"]
[null,null,null,null,null,null,null,null,null,null,null,null,null,null,null,null,null,null,null,null,null,null,null,null,null,null,null,null,null,null,null,null,null,null,null,null,null,null,null,null,null,null,null,null,null,null,null,null,null,null,null,null,null,null,null,null,"Punkte"]
["B",{"$f":"IF($B$10=\"\",\"\",$B$10)","v":""},null,null,null,null,null,null,null,null,null,null,null,null,null,null,null,null,null,null,null,null,null,null,null,null,null,null,null,null,null,null,null,null,null,null,null,null,null,null,null,null,null,null,null,null,null,null,null,null,null,null,null,null,null,null,"Punkte"]
[null,null,null,null,null,null,null,null,null,null,null,null,null,null,null,null,null,null,null,null,null,null,null,null,null,null,null,null,null,null,null,null,null,null,null,null,null,null,null,null,null,null,null,null,null,null,null,null,null,null,null,null,null,null,null,null,"Aufschlag L/R"]
[null,null,null,null,null,null,null,null,null,null,null,null,null,null,null,null,null,null,null,null,null,null,null,null,null,null,null,null,null,null,null,null,null,null,null,null,null,null,null,null,null,null,null,null,null,null,null,null,null,null,null,null,null,null,null,null,"Let=L / Fehler=x"]
[]
[null,null,null,null,null,null,null,null,null,null,null,null,null,null,null,null,null,null,null,null,null,null,null,null,null,null,null,null,null,null,null,null,null,null,null,null,null,null,null,null,null,null,null,null,null,null,null,null,null,null,null,null,null,null,null,null,"Let=L / Fehler=x"]
[]
["A",{"$f":"IF($B$8=\"\",\"\",$B$8)","v":"Axel Nieder"},null,null,null,null,null,null,null,null,null,null,null,null,null,null,null,null,null,null,null,null,null,null,null,null,null,null,null,null,null,null,null,null,null,null,null,null,null,null,null,null,null,null,null,null,null,null,null,null,null,null,null,null,null,null,"Aufschlag L/R"]
[null,null,null,null,null,null,null,null,null,null,null,null,null,null,null,null,null,null,null,null,null,null,null,null,null,null,null,null,null,null,null,null,null,null,null,null,null,null,null,null,null,null,null,null,null,null,null,null,null,null,null,null,null,null,null,null,"Punkte"]
["B",{"$f":"IF($B$10=\"\",\"\",$B$10)","v":""},null,null,null,null,null,null,null,null,null,null,null,null,null,null,null,null,null,null,null,null,null,null,null,null,null,null,null,null,null,null,null,null,null,null,null,null,null,null,null,null,null,null,null,null,null,null,null,null,null,null,null,null,null,null,"Punkte"]
[null,null,null,null,null,null,null,null,null,null,null,null,null,null,null,null,null,null,null,null,null,null,null,null,null,null,null,null,null,null,null,null,null,null,null,null,null,null,null,null,null,null,null,null,null,null,null,null,null,null,null,null,null,null,null,null,"Aufschlag L/R"]
[null,null,null,null,null,null,null,null,null,null,null,null,null,null,null,null,null,null,null,null,null,null,null,null,null,null,null,null,null,null,null,null,null,null,null,null,null,null,null,null,null,null,null,null,null,null,null,null,null,null,null,null,null,null,null,null,"Let=L / Fehler=x"]

{"sheet":"Paarung 3 | Spiel 3","index":11,"n_rows":55,"n_cols":57,"rows_kept":55,"cut":false,"hidden":false,"merged":[[1,1,2,27],[1,49,2,52],[1,53,2,55],[3,1,4,34],[3,46,4,48],[3,50,4,51],[5,46,6,48],[5,50,6,51],[7,0,8,0],[7,1,8,15],[7,16,8,30],[7,31,10,34],[7,46,8,48],[7,50,8,51],[9,0,10,0],[9,1,10,15],[18,0,19,0],[18,1,19,8],[18,56,18,60],[19,56,19,60],[9,16,10,30],[9,46,10,48],[9,50,10,51],[11,46,12,48],[11,50,12,51],[12,12,12,13],[12,14,12,15],[24,56,25,60],[13,12,14,13],[13,16,14,30],[13,31,14,43],[13,49,14,52],[16,56,17,60],[20,0,21,0],[20,1,21,8],[20,56,20,60],[21,56,21,60],[22,56,23,60],[26,0,27,0],[26,1,27,8],[26,56,26,60],[27,56,27,60],[28,0,29,0],[28,1,29,8],[28,56,28,60],[29,56,29,60],[40,56,41,60],[30,56,31,60],[32,56,33,60],[34,0,35,0],[34,1,35,8],[34,56,34,60],[35,56,35,60],[36,0,37,0],[36,1,37,8],[36,56,36,60],[37,56,37,60],[38,56,39,60],[42,0,43,0],[42,1,43,8],[42,56,42,60],[43,56,43,60],[44,0,45,0],[44,1,45,8],[44,56,44,60],[45,56,45,60],[46,56,47,60],[48,56,49,60],[50,0,51,0],[50,1,51,8],[50,56,50,60],[51,56,51,60],[52,0,53,0],[52,1,53,8],[52,56,52,60],[53,56,53,60],[54,56,55,60]]}
[]
[null,"Schiedsrichterformular",null,null,null,null,null,null,null,null,null,null,null,null,null,null,null,null,null,null,null,null,null,null,null,null,null,null,null,null,null,null,null,null,null,null,null,null,null,null,null,null,null,null,null,null,null,null,null,"Punkte",null,null,null,"Beginn\nUhrzeit"]
[]
[null,{"$f":"IF(Q8=\"\",\"\",\" Position \" & M14 & \":     \" & Q8 & \"   -   \" & Q10)","v":" Position 3:     Fun Point Gerlingen 2   -   Squash Devils 7"},null,null,null,null,null,null,null,null,null,null,null,null,null,null,null,null,null,null,null,null,null,null,null,null,null,null,null,null,null,null,null,null,null,null,null,null,null,null,null,null,null,null,null,null,"1. Satz",null,null,null,":"]
[]
[null,null,null,null,null,null,null,null,null,null,null,null,null,null,null,null,null,null,null,null,null,null,null,null,null,null,null,null,null,null,null,null,null,null,null,null,null,null,null,null,null,null,null,null,null,null,"2. Satz",null,null,null,":"]
[null,"Spielername",null,null,null,null,null,null,null,null,null,null,null,null,null,null,"Vereinsname",null,null,null,null,null,null,null,null,null,null,null,null,null,null,"Endergebnis"]
["A","Marc Hartmann",null,null,null,null,null,null,null,null,null,null,null,null,null,null,"Fun Point Gerlingen 2",null,null,null,null,null,null,null,null,null,null,null,null,null,null,":",null,null,null,null,null,null,null,null,null,null,null,null,null,null,"3. Satz",null,null,null,":"]
[]
["B",null,null,null,null,null,null,null,null,null,null,null,null,null,null,null,"Squash Devils 7",null,null,null,null,null,null,null,null,null,null,null,null,null,null,null,null,null,null,null,null,null,null,null,null,null,null,null,null,null,"4. Satz",null,null,null,":"]
[]
[null,null,null,null,null,null,null,null,null,null,null,null,null,null,null,null,null,null,null,null,null,null,null,null,null,null,null,null,null,null,null,null,null,null,null,null,null,null,null,null,null,null,null,null,null,null,"5. Satz",null,null,null,":"]
[null,"Datum",null,null,null,null,null,null,null,null,null,null,"Position",null,"Court",null,"Schiedsrichter - Vereinsname",null,null,null,null,null,null,null,null,null,null,null,null,null,null,"Schiedsrichter (Position - Name)"]
[null,null,null,null,null,null,null,null,null,null,null,null,3,null,null,null,"Ulmer SC 3",null,null,null,null,null,null,null,null,null,null,null,null,null,null,"Pos. 3 - ",null,null,null,null,null,null,null,null,null,null,null,null,null,null,null,null,null,"Spielende\nUhrzeit"]
[]
[]
[null,null,null,null,null,null,null,null,null,null,null,null,null,null,null,null,null,null,null,null,null,null,null,null,null,null,null,null,null,null,null,null,null,null,null,null,null,null,null,null,null,null,null,null,null,null,null,null,null,null,null,null,null,null,null,null,"Let=L / Fehler=x"]
[]
["A",{"$f":"IF($B$8=\"\",\"\",$B$8)","v":"Marc Hartmann"},null,null,null,null,null,null,null,null,null,null,null,null,null,null,null,null,null,null,null,null,null,null,null,null,null,null,null,null,null,null,null,null,null,null,null,null,null,null,null,null,null,null,null,null,null,null,null,null,null,null,null,null,null,null,"Aufschlag L/R"]
[null,null,null,null,null,null,null,null,null,null,null,null,null,null,null,null,null,null,null,null,null,null,null,null,null,null,null,null,null,null,null,null,null,null,null,null,null,null,null,null,null,null,null,null,null,null,null,null,null,null,null,null,null,null,null,null,"Punkte"]
["B",{"$f":"IF($B$10=\"\",\"\",$B$10)","v":""},null,null,null,null,null,null,null,null,null,null,null,null,null,null,null,null,null,null,null,null,null,null,null,null,null,null,null,null,null,null,null,null,null,null,null,null,null,null,null,null,null,null,null,null,null,null,null,null,null,null,null,null,null,null,"Punkte"]
[null,null,null,null,null,null,null,null,null,null,null,null,null,null,null,null,null,null,null,null,null,null,null,null,null,null,null,null,null,null,null,null,null,null,null,null,null,null,null,null,null,null,null,null,null,null,null,null,null,null,null,null,null,null,null,null,"Aufschlag L/R"]
[null,null,null,null,null,null,null,null,null,null,null,null,null,null,null,null,null,null,null,null,null,null,null,null,null,null,null,null,null,null,null,null,null,null,null,null,null,null,null,null,null,null,null,null,null,null,null,null,null,null,null,null,null,null,null,null,"Let=L / Fehler=x"]
[]
[null,null,null,null,null,null,null,null,null,null,null,null,null,null,null,null,null,null,null,null,null,null,null,null,null,null,null,null,null,null,null,null,null,null,null,null,null,null,null,null,null,null,null,null,null,null,null,null,null,null,null,null,null,null,null,null,"Let=L / Fehler=x"]
[]
["A",{"$f":"IF($B$8=\"\",\"\",$B$8)","v":"Marc Hartmann"},null,null,null,null,null,null,null,null,null,null,null,null,null,null,null,null,null,null,null,null,null,null,null,null,null,null,null,null,null,null,null,null,null,null,null,null,null,null,null,null,null,null,null,null,null,null,null,null,null,null,null,null,null,null,"Aufschlag L/R"]
[null,null,null,null,null,null,null,null,null,null,null,null,null,null,null,null,null,null,null,null,null,null,null,null,null,null,null,null,null,null,null,null,null,null,null,null,null,null,null,null,null,null,null,null,null,null,null,null,null,null,null,null,null,null,null,null,"Punkte"]
["B",{"$f":"IF($B$10=\"\",\"\",$B$10)","v":""},null,null,null,null,null,null,null,null,null,null,null,null,null,null,null,null,null,null,null,null,null,null,null,null,null,null,null,null,null,null,null,null,null,null,null,null,null,null,null,null,null,null,null,null,null,null,null,null,null,null,null,null,null,null,"Punkte"]
[null,null,null,null,null,null,null,null,null,null,null,null,null,null,null,null,null,null,null,null,null,null,null,null,null,null,null,null,null,null,null,null,null,null,null,null,null,null,null,null,null,null,null,null,null,null,null,null,null,null,null,null,null,null,null,null,"Aufschlag L/R"]
[null,null,null,null,null,null,null,null,null,null,null,null,null,null,null,null,null,null,null,null,null,null,null,null,null,null,null,null,null,null,null,null,null,null,null,null,null,null,null,null,null,null,null,null,null,null,null,null,null,null,null,null,null,null,null,null,"Let=L / Fehler=x"]
[]
[null,null,null,null,null,null,null,null,null,null,null,null,null,null,null,null,null,null,null,null,null,null,null,null,null,null,null,null,null,null,null,null,null,null,null,null,null,null,null,null,null,null,null,null,null,null,null,null,null,null,null,null,null,null,null,null,"Let=L / Fehler=x"]
[]
["A",{"$f":"IF($B$8=\"\",\"\",$B$8)","v":"Marc Hartmann"},null,null,null,null,null,null,null,null,null,null,null,null,null,null,null,null,null,null,null,null,null,null,null,null,null,null,null,null,null,null,null,null,null,null,null,null,null,null,null,null,null,null,null,null,null,null,null,null,null,null,null,null,null,null,"Aufschlag L/R"]
[null,null,null,null,null,null,null,null,null,null,null,null,null,null,null,null,null,null,null,null,null,null,null,null,null,null,null,null,null,null,null,null,null,null,null,null,null,null,null,null,null,null,null,null,null,null,null,null,null,null,null,null,null,null,null,null,"Punkte"]
["B",{"$f":"IF($B$10=\"\",\"\",$B$10)","v":""},null,null,null,null,null,null,null,null,null,null,null,null,null,null,null,null,null,null,null,null,null,null,null,null,null,null,null,null,null,null,null,null,null,null,null,null,null,null,null,null,null,null,null,null,null,null,null,null,null,null,null,null,null,null,"Punkte"]
[null,null,null,null,null,null,null,null,null,null,null,null,null,null,null,null,null,null,null,null,null,null,null,null,null,null,null,null,null,null,null,null,null,null,null,null,null,null,null,null,null,null,null,null,null,null,null,null,null,null,null,null,null,null,null,null,"Aufschlag L/R"]
[null,null,null,null,null,null,null,null,null,null,null,null,null,null,null,null,null,null,null,null,null,null,null,null,null,null,null,null,null,null,null,null,null,null,null,null,null,null,null,null,null,null,null,null,null,null,null,null,null,null,null,null,null,null,null,null,"Let=L / Fehler=x"]
[]
[null,null,null,null,null,null,null,null,null,null,null,null,null,null,null,null,null,null,null,null,null,null,null,null,null,null,null,null,null,null,null,null,null,null,null,null,null,null,null,null,null,null,null,null,null,null,null,null,null,null,null,null,null,null,null,null,"Let=L / Fehler=x"]
[]
["A",{"$f":"IF($B$8=\"\",\"\",$B$8)","v":"Marc Hartmann"},null,null,null,null,null,null,null,null,null,null,null,null,null,null,null,null,null,null,null,null,null,null,null,null,null,null,null,null,null,null,null,null,null,null,null,null,null,null,null,null,null,null,null,null,null,null,null,null,null,null,null,null,null,null,"Aufschlag L/R"]
[null,null,null,null,null,null,null,null,null,null,null,null,null,null,null,null,null,null,null,null,null,null,null,null,null,null,null,null,null,null,null,null,null,null,null,null,null,null,null,null,null,null,null,null,null,null,null,null,null,null,null,null,null,null,null,null,"Punkte"]
["B",{"$f":"IF($B$10=\"\",\"\",$B$10)","v":""},null,null,null,null,null,null,null,null,null,null,null,null,null,null,null,null,null,null,null,null,null,null,null,null,null,null,null,null,null,null,null,null,null,null,null,null,null,null,null,null,null,null,null,null,null,null,null,null,null,null,null,null,null,null,"Punkte"]
[null,null,null,null,null,null,null,null,null,null,null,null,null,null,null,null,null,null,null,null,null,null,null,null,null,null,null,null,null,null,null,null,null,null,null,null,null,null,null,null,null,null,null,null,null,null,null,null,null,null,null,null,null,null,null,null,"Aufschlag L/R"]
[null,null,null,null,null,null,null,null,null,null,null,null,null,null,null,null,null,null,null,null,null,null,null,null,null,null,null,null,null,null,null,null,null,null,null,null,null,null,null,null,null,null,null,null,null,null,null,null,null,null,null,null,null,null,null,null,"Let=L / Fehler=x"]
[]
[null,null,null,null,null,null,null,null,null,null,null,null,null,null,null,null,null,null,null,null,null,null,null,null,null,null,null,null,null,null,null,null,null,null,null,null,null,null,null,null,null,null,null,null,null,null,null,null,null,null,null,null,null,null,null,null,"Let=L / Fehler=x"]
[]
["A",{"$f":"IF($B$8=\"\",\"\",$B$8)","v":"Marc Hartmann"},null,null,null,null,null,null,null,null,null,null,null,null,null,null,null,null,null,null,null,null,null,null,null,null,null,null,null,null,null,null,null,null,null,null,null,null,null,null,null,null,null,null,null,null,null,null,null,null,null,null,null,null,null,null,"Aufschlag L/R"]
[null,null,null,null,null,null,null,null,null,null,null,null,null,null,null,null,null,null,null,null,null,null,null,null,null,null,null,null,null,null,null,null,null,null,null,null,null,null,null,null,null,null,null,null,null,null,null,null,null,null,null,null,null,null,null,null,"Punkte"]
["B",{"$f":"IF($B$10=\"\",\"\",$B$10)","v":""},null,null,null,null,null,null,null,null,null,null,null,null,null,null,null,null,null,null,null,null,null,null,null,null,null,null,null,null,null,null,null,null,null,null,null,null,null,null,null,null,null,null,null,null,null,null,null,null,null,null,null,null,null,null,"Punkte"]
[null,null,null,null,null,null,null,null,null,null,null,null,null,null,null,null,null,null,null,null,null,null,null,null,null,null,null,null,null,null,null,null,null,null,null,null,null,null,null,null,null,null,null,null,null,null,null,null,null,null,null,null,null,null,null,null,"Aufschlag L/R"]
[null,null,null,null,null,null,null,null,null,null,null,null,null,null,null,null,null,null,null,null,null,null,null,null,null,null,null,null,null,null,null,null,null,null,null,null,null,null,null,null,null,null,null,null,null,null,null,null,null,null,null,null,null,null,null,null,"Let=L / Fehler=x"]

{"sheet":"Paarung 3 | Spiel 1","index":12,"n_rows":55,"n_cols":57,"rows_kept":55,"cut":false,"hidden":false,"merged":[[1,1,2,27],[1,49,2,52],[1,53,2,55],[3,1,4,34],[3,46,4,48],[3,50,4,51],[5,46,6,48],[5,50,6,51],[7,0,8,0],[7,1,8,15],[7,16,8,30],[7,31,10,34],[7,46,8,48],[7,50,8,51],[9,0,10,0],[9,1,10,15],[18,0,19,0],[18,1,19,8],[18,56,18,60],[19,56,19,60],[9,16,10,30],[9,46,10,48],[9,50,10,51],[11,46,12,48],[11,50,12,51],[12,12,12,13],[12,14,12,15],[24,56,25,60],[13,12,14,13],[13,16,14,30],[13,31,14,43],[13,49,14,52],[16,56,17,60],[20,0,21,0],[20,1,21,8],[20,56,20,60],[21,56,21,60],[22,56,23,60],[26,0,27,0],[26,1,27,8],[26,56,26,60],[27,56,27,60],[28,0,29,0],[28,1,29,8],[28,56,28,60],[29,56,29,60],[40,56,41,60],[30,56,31,60],[32,56,33,60],[34,0,35,0],[34,1,35,8],[34,56,34,60],[35,56,35,60],[36,0,37,0],[36,1,37,8],[36,56,36,60],[37,56,37,60],[38,56,39,60],[42,0,43,0],[42,1,43,8],[42,56,42,60],[43,56,43,60],[44,0,45,0],[44,1,45,8],[44,56,44,60],[45,56,45,60],[46,56,47,60],[48,56,49,60],[50,0,51,0],[50,1,51,8],[50,56,50,60],[51,56,51,60],[52,0,53,0],[52,1,53,8],[52,56,52,60],[53,56,53,60],[54,56,55,60]]}
[]
[null,"Schiedsrichterformular",null,null,null,null,null,null,null,null,null,null,null,null,null,null,null,null,null,null,null,null,null,null,null,null,null,null,null,null,null,null,null,null,null,null,null,null,null,null,null,null,null,null,null,null,null,null,null,"Punkte",null,null,null,"Beginn\nUhrzeit"]
[]
[null,{"$f":"IF(Q8=\"\",\"\",\" Position \" & M14 & \":     \" & Q8 & \"   -   \" & Q10)","v":" Position 1:     Fun Point Gerlingen 2   -   Squash Devils 7"},null,null,null,null,null,null,null,null,null,null,null,null,null,null,null,null,null,null,null,null,null,null,null,null,null,null,null,null,null,null,null,null,null,null,null,null,null,null,null,null,null,null,null,null,"1. Satz",null,null,null,":"]
[]
[null,null,null,null,null,null,null,null,null,null,null,null,null,null,null,null,null,null,null,null,null,null,null,null,null,null,null,null,null,null,null,null,null,null,null,null,null,null,null,null,null,null,null,null,null,null,"2. Satz",null,null,null,":"]
[null,"Spielername",null,null,null,null,null,null,null,null,null,null,null,null,null,null,"Vereinsname",null,null,null,null,null,null,null,null,null,null,null,null,null,null,"Endergebnis"]
["A","Ralph Bieber",null,null,null,null,null,null,null,null,null,null,null,null,null,null,"Fun Point Gerlingen 2",null,null,null,null,null,null,null,null,null,null,null,null,null,null,":",null,null,null,null,null,null,null,null,null,null,null,null,null,null,"3. Satz",null,null,null,":"]
[]
["B",null,null,null,null,null,null,null,null,null,null,null,null,null,null,null,"Squash Devils 7",null,null,null,null,null,null,null,null,null,null,null,null,null,null,null,null,null,null,null,null,null,null,null,null,null,null,null,null,null,"4. Satz",null,null,null,":"]
[]
[null,null,null,null,null,null,null,null,null,null,null,null,null,null,null,null,null,null,null,null,null,null,null,null,null,null,null,null,null,null,null,null,null,null,null,null,null,null,null,null,null,null,null,null,null,null,"5. Satz",null,null,null,":"]
[null,"Datum",null,null,null,null,null,null,null,null,null,null,"Position",null,"Court",null,"Schiedsrichter - Vereinsname",null,null,null,null,null,null,null,null,null,null,null,null,null,null,"Schiedsrichter (Position - Name)"]
[null,null,null,null,null,null,null,null,null,null,null,null,1,null,null,null,"Ulmer SC 3",null,null,null,null,null,null,null,null,null,null,null,null,null,null,"Pos. 1 - ",null,null,null,null,null,null,null,null,null,null,null,null,null,null,null,null,null,"Spielende\nUhrzeit"]
[]
[]
[null,null,null,null,null,null,null,null,null,null,null,null,null,null,null,null,null,null,null,null,null,null,null,null,null,null,null,null,null,null,null,null,null,null,null,null,null,null,null,null,null,null,null,null,null,null,null,null,null,null,null,null,null,null,null,null,"Let=L / Fehler=x"]
[]
["A",{"$f":"IF($B$8=\"\",\"\",$B$8)","v":"Ralph Bieber"},null,null,null,null,null,null,null,null,null,null,null,null,null,null,null,null,null,null,null,null,null,null,null,null,null,null,null,null,null,null,null,null,null,null,null,null,null,null,null,null,null,null,null,null,null,null,null,null,null,null,null,null,null,null,"Aufschlag L/R"]
[null,null,null,null,null,null,null,null,null,null,null,null,null,null,null,null,null,null,null,null,null,null,null,null,null,null,null,null,null,null,null,null,null,null,null,null,null,null,null,null,null,null,null,null,null,null,null,null,null,null,null,null,null,null,null,null,"Punkte"]
["B",{"$f":"IF($B$10=\"\",\"\",$B$10)","v":""},null,null,null,null,null,null,null,null,null,null,null,null,null,null,null,null,null,null,null,null,null,null,null,null,null,null,null,null,null,null,null,null,null,null,null,null,null,null,null,null,null,null,null,null,null,null,null,null,null,null,null,null,null,null,"Punkte"]
[null,null,null,null,null,null,null,null,null,null,null,null,null,null,null,null,null,null,null,null,null,null,null,null,null,null,null,null,null,null,null,null,null,null,null,null,null,null,null,null,null,null,null,null,null,null,null,null,null,null,null,null,null,null,null,null,"Aufschlag L/R"]
[null,null,null,null,null,null,null,null,null,null,null,null,null,null,null,null,null,null,null,null,null,null,null,null,null,null,null,null,null,null,null,null,null,null,null,null,null,null,null,null,null,null,null,null,null,null,null,null,null,null,null,null,null,null,null,null,"Let=L / Fehler=x"]
[]
[null,null,null,null,null,null,null,null,null,null,null,null,null,null,null,null,null,null,null,null,null,null,null,null,null,null,null,null,null,null,null,null,null,null,null,null,null,null,null,null,null,null,null,null,null,null,null,null,null,null,null,null,null,null,null,null,"Let=L / Fehler=x"]
[]
["A",{"$f":"IF($B$8=\"\",\"\",$B$8)","v":"Ralph Bieber"},null,null,null,null,null,null,null,null,null,null,null,null,null,null,null,null,null,null,null,null,null,null,null,null,null,null,null,null,null,null,null,null,null,null,null,null,null,null,null,null,null,null,null,null,null,null,null,null,null,null,null,null,null,null,"Aufschlag L/R"]
[null,null,null,null,null,null,null,null,null,null,null,null,null,null,null,null,null,null,null,null,null,null,null,null,null,null,null,null,null,null,null,null,null,null,null,null,null,null,null,null,null,null,null,null,null,null,null,null,null,null,null,null,null,null,null,null,"Punkte"]
["B",{"$f":"IF($B$10=\"\",\"\",$B$10)","v":""},null,null,null,null,null,null,null,null,null,null,null,null,null,null,null,null,null,null,null,null,null,null,null,null,null,null,null,null,null,null,null,null,null,null,null,null,null,null,null,null,null,null,null,null,null,null,null,null,null,null,null,null,null,null,"Punkte"]
[null,null,null,null,null,null,null,null,null,null,null,null,null,null,null,null,null,null,null,null,null,null,null,null,null,null,null,null,null,null,null,null,null,null,null,null,null,null,null,null,null,null,null,null,null,null,null,null,null,null,null,null,null,null,null,null,"Aufschlag L/R"]
[null,null,null,null,null,null,null,null,null,null,null,null,null,null,null,null,null,null,null,null,null,null,null,null,null,null,null,null,null,null,null,null,null,null,null,null,null,null,null,null,null,null,null,null,null,null,null,null,null,null,null,null,null,null,null,null,"Let=L / Fehler=x"]
[]
[null,null,null,null,null,null,null,null,null,null,null,null,null,null,null,null,null,null,null,null,null,null,null,null,null,null,null,null,null,null,null,null,null,null,null,null,null,null,null,null,null,null,null,null,null,null,null,null,null,null,null,null,null,null,null,null,"Let=L / Fehler=x"]
[]
["A",{"$f":"IF($B$8=\"\",\"\",$B$8)","v":"Ralph Bieber"},null,null,null,null,null,null,null,null,null,null,null,null,null,null,null,null,null,null,null,null,null,null,null,null,null,null,null,null,null,null,null,null,null,null,null,null,null,null,null,null,null,null,null,null,null,null,null,null,null,null,null,null,null,null,"Aufschlag L/R"]
[null,null,null,null,null,null,null,null,null,null,null,null,null,null,null,null,null,null,null,null,null,null,null,null,null,null,null,null,null,null,null,null,null,null,null,null,null,null,null,null,null,null,null,null,null,null,null,null,null,null,null,null,null,null,null,null,"Punkte"]
["B",{"$f":"IF($B$10=\"\",\"\",$B$10)","v":""},null,null,null,null,null,null,null,null,null,null,null,null,null,null,null,null,null,null,null,null,null,null,null,null,null,null,null,null,null,null,null,null,null,null,null,null,null,null,null,null,null,null,null,null,null,null,null,null,null,null,null,null,null,null,"Punkte"]
[null,null,null,null,null,null,null,null,null,null,null,null,null,null,null,null,null,null,null,null,null,null,null,null,null,null,null,null,null,null,null,null,null,null,null,null,null,null,null,null,null,null,null,null,null,null,null,null,null,null,null,null,null,null,null,null,"Aufschlag L/R"]
[null,null,null,null,null,null,null,null,null,null,null,null,null,null,null,null,null,null,null,null,null,null,null,null,null,null,null,null,null,null,null,null,null,null,null,null,null,null,null,null,null,null,null,null,null,null,null,null,null,null,null,null,null,null,null,null,"Let=L / Fehler=x"]
[]
[null,null,null,null,null,null,null,null,null,null,null,null,null,null,null,null,null,null,null,null,null,null,null,null,null,null,null,null,null,null,null,null,null,null,null,null,null,null,null,null,null,null,null,null,null,null,null,null,null,null,null,null,null,null,null,null,"Let=L / Fehler=x"]
[]
["A",{"$f":"IF($B$8=\"\",\"\",$B$8)","v":"Ralph Bieber"},null,null,null,null,null,null,null,null,null,null,null,null,null,null,null,null,null,null,null,null,null,null,null,null,null,null,null,null,null,null,null,null,null,null,null,null,null,null,null,null,null,null,null,null,null,null,null,null,null,null,null,null,null,null,"Aufschlag L/R"]
[null,null,null,null,null,null,null,null,null,null,null,null,null,null,null,null,null,null,null,null,null,null,null,null,null,null,null,null,null,null,null,null,null,null,null,null,null,null,null,null,null,null,null,null,null,null,null,null,null,null,null,null,null,null,null,null,"Punkte"]
["B",{"$f":"IF($B$10=\"\",\"\",$B$10)","v":""},null,null,null,null,null,null,null,null,null,null,null,null,null,null,null,null,null,null,null,null,null,null,null,null,null,null,null,null,null,null,null,null,null,null,null,null,null,null,null,null,null,null,null,null,null,null,null,null,null,null,null,null,null,null,"Punkte"]
[null,null,null,null,null,null,null,null,null,null,null,null,null,null,null,null,null,null,null,null,null,null,null,null,null,null,null,null,null,null,null,null,null,null,null,null,null,null,null,null,null,null,null,null,null,null,null,null,null,null,null,null,null,null,null,null,"Aufschlag L/R"]
[null,null,null,null,null,null,null,null,null,null,null,null,null,null,null,null,null,null,null,null,null,null,null,null,null,null,null,null,null,null,null,null,null,null,null,null,null,null,null,null,null,null,null,null,null,null,null,null,null,null,null,null,null,null,null,null,"Let=L / Fehler=x"]
[]
[null,null,null,null,null,null,null,null,null,null,null,null,null,null,null,null,null,null,null,null,null,null,null,null,null,null,null,null,null,null,null,null,null,null,null,null,null,null,null,null,null,null,null,null,null,null,null,null,null,null,null,null,null,null,null,null,"Let=L / Fehler=x"]
[]
["A",{"$f":"IF($B$8=\"\",\"\",$B$8)","v":"Ralph Bieber"},null,null,null,null,null,null,null,null,null,null,null,null,null,null,null,null,null,null,null,null,null,null,null,null,null,null,null,null,null,null,null,null,null,null,null,null,null,null,null,null,null,null,null,null,null,null,null,null,null,null,null,null,null,null,"Aufschlag L/R"]
[null,null,null,null,null,null,null,null,null,null,null,null,null,null,null,null,null,null,null,null,null,null,null,null,null,null,null,null,null,null,null,null,null,null,null,null,null,null,null,null,null,null,null,null,null,null,null,null,null,null,null,null,null,null,null,null,"Punkte"]
["B",{"$f":"IF($B$10=\"\",\"\",$B$10)","v":""},null,null,null,null,null,null,null,null,null,null,null,null,null,null,null,null,null,null,null,null,null,null,null,null,null,null,null,null,null,null,null,null,null,null,null,null,null,null,null,null,null,null,null,null,null,null,null,null,null,null,null,null,null,null,"Punkte"]
[null,null,null,null,null,null,null,null,null,null,null,null,null,null,null,null,null,null,null,null,null,null,null,null,null,null,null,null,null,null,null,null,null,null,null,null,null,null,null,null,null,null,null,null,null,null,null,null,null,null,null,null,null,null,null,null,"Aufschlag L/R"]
[null,null,null,null,null,null,null,null,null,null,null,null,null,null,null,null,null,null,null,null,null,null,null,null,null,null,null,null,null,null,null,null,null,null,null,null,null,null,null,null,null,null,null,null,null,null,null,null,null,null,null,null,null,null,null,null,"Let=L / Fehler=x"]

{"sheet":"Paarung 3 | Spiel 2","index":13,"n_rows":55,"n_cols":57,"rows_kept":55,"cut":false,"hidden":false,"merged":[[1,1,2,27],[1,49,2,52],[1,53,2,55],[3,1,4,34],[3,46,4,48],[3,50,4,51],[5,46,6,48],[5,50,6,51],[7,0,8,0],[7,1,8,15],[7,16,8,30],[7,31,10,34],[7,46,8,48],[7,50,8,51],[9,0,10,0],[9,1,10,15],[18,0,19,0],[18,1,19,8],[18,56,18,60],[19,56,19,60],[9,16,10,30],[9,46,10,48],[9,50,10,51],[11,46,12,48],[11,50,12,51],[12,12,12,13],[12,14,12,15],[24,56,25,60],[13,12,14,13],[13,16,14,30],[13,31,14,43],[13,49,14,52],[16,56,17,60],[20,0,21,0],[20,1,21,8],[20,56,20,60],[21,56,21,60],[22,56,23,60],[26,0,27,0],[26,1,27,8],[26,56,26,60],[27,56,27,60],[28,0,29,0],[28,1,29,8],[28,56,28,60],[29,56,29,60],[40,56,41,60],[30,56,31,60],[32,56,33,60],[34,0,35,0],[34,1,35,8],[34,56,34,60],[35,56,35,60],[36,0,37,0],[36,1,37,8],[36,56,36,60],[37,56,37,60],[38,56,39,60],[42,0,43,0],[42,1,43,8],[42,56,42,60],[43,56,43,60],[44,0,45,0],[44,1,45,8],[44,56,44,60],[45,56,45,60],[46,56,47,60],[48,56,49,60],[50,0,51,0],[50,1,51,8],[50,56,50,60],[51,56,51,60],[52,0,53,0],[52,1,53,8],[52,56,52,60],[53,56,53,60],[54,56,55,60]]}
[]
[null,"Schiedsrichterformular",null,null,null,null,null,null,null,null,null,null,null,null,null,null,null,null,null,null,null,null,null,null,null,null,null,null,null,null,null,null,null,null,null,null,null,null,null,null,null,null,null,null,null,null,null,null,null,"Punkte",null,null,null,"Beginn\nUhrzeit"]
[]
[null,{"$f":"IF(Q8=\"\",\"\",\" Position \" & M14 & \":     \" & Q8 & \"   -   \" & Q10)","v":" Position 2:     Fun Point Gerlingen 2   -   Squash Devils 7"},null,null,null,null,null,null,null,null,null,null,null,null,null,null,null,null,null,null,null,null,null,null,null,null,null,null,null,null,null,null,null,null,null,null,null,null,null,null,null,null,null,null,null,null,"1. Satz",null,null,null,":"]
[]
[null,null,null,null,null,null,null,null,null,null,null,null,null,null,null,null,null,null,null,null,null,null,null,null,null,null,null,null,null,null,null,null,null,null,null,null,null,null,null,null,null,null,null,null,null,null,"2. Satz",null,null,null,":"]
[null,"Spielername",null,null,null,null,null,null,null,null,null,null,null,null,null,null,"Vereinsname",null,null,null,null,null,null,null,null,null,null,null,null,null,null,"Endergebnis"]
["A","Rainer Ginzel",null,null,null,null,null,null,null,null,null,null,null,null,null,null,"Fun Point Gerlingen 2",null,null,null,null,null,null,null,null,null,null,null,null,null,null,":",null,null,null,null,null,null,null,null,null,null,null,null,null,null,"3. Satz",null,null,null,":"]
[]
["B",null,null,null,null,null,null,null,null,null,null,null,null,null,null,null,"Squash Devils 7",null,null,null,null,null,null,null,null,null,null,null,null,null,null,null,null,null,null,null,null,null,null,null,null,null,null,null,null,null,"4. Satz",null,null,null,":"]
[]
[null,null,null,null,null,null,null,null,null,null,null,null,null,null,null,null,null,null,null,null,null,null,null,null,null,null,null,null,null,null,null,null,null,null,null,null,null,null,null,null,null,null,null,null,null,null,"5. Satz",null,null,null,":"]
[null,"Datum",null,null,null,null,null,null,null,null,null,null,"Position",null,"Court",null,"Schiedsrichter - Vereinsname",null,null,null,null,null,null,null,null,null,null,null,null,null,null,"Schiedsrichter (Position - Name)"]
[null,null,null,null,null,null,null,null,null,null,null,null,2,null,null,null,"Ulmer SC 3",null,null,null,null,null,null,null,null,null,null,null,null,null,null,"Pos. 2 - ",null,null,null,null,null,null,null,null,null,null,null,null,null,null,null,null,null,"Spielende\nUhrzeit"]
[]
[]
[null,null,null,null,null,null,null,null,null,null,null,null,null,null,null,null,null,null,null,null,null,null,null,null,null,null,null,null,null,null,null,null,null,null,null,null,null,null,null,null,null,null,null,null,null,null,null,null,null,null,null,null,null,null,null,null,"Let=L / Fehler=x"]
[]
["A",{"$f":"IF($B$8=\"\",\"\",$B$8)","v":"Rainer Ginzel"},null,null,null,null,null,null,null,null,null,null,null,null,null,null,null,null,null,null,null,null,null,null,null,null,null,null,null,null,null,null,null,null,null,null,null,null,null,null,null,null,null,null,null,null,null,null,null,null,null,null,null,null,null,null,"Aufschlag L/R"]
[null,null,null,null,null,null,null,null,null,null,null,null,null,null,null,null,null,null,null,null,null,null,null,null,null,null,null,null,null,null,null,null,null,null,null,null,null,null,null,null,null,null,null,null,null,null,null,null,null,null,null,null,null,null,null,null,"Punkte"]
["B",{"$f":"IF($B$10=\"\",\"\",$B$10)","v":""},null,null,null,null,null,null,null,null,null,null,null,null,null,null,null,null,null,null,null,null,null,null,null,null,null,null,null,null,null,null,null,null,null,null,null,null,null,null,null,null,null,null,null,null,null,null,null,null,null,null,null,null,null,null,"Punkte"]
[null,null,null,null,null,null,null,null,null,null,null,null,null,null,null,null,null,null,null,null,null,null,null,null,null,null,null,null,null,null,null,null,null,null,null,null,null,null,null,null,null,null,null,null,null,null,null,null,null,null,null,null,null,null,null,null,"Aufschlag L/R"]
[null,null,null,null,null,null,null,null,null,null,null,null,null,null,null,null,null,null,null,null,null,null,null,null,null,null,null,null,null,null,null,null,null,null,null,null,null,null,null,null,null,null,null,null,null,null,null,null,null,null,null,null,null,null,null,null,"Let=L / Fehler=x"]
[]
[null,null,null,null,null,null,null,null,null,null,null,null,null,null,null,null,null,null,null,null,null,null,null,null,null,null,null,null,null,null,null,null,null,null,null,null,null,null,null,null,null,null,null,null,null,null,null,null,null,null,null,null,null,null,null,null,"Let=L / Fehler=x"]
[]
["A",{"$f":"IF($B$8=\"\",\"\",$B$8)","v":"Rainer Ginzel"},null,null,null,null,null,null,null,null,null,null,null,null,null,null,null,null,null,null,null,null,null,null,null,null,null,null,null,null,null,null,null,null,null,null,null,null,null,null,null,null,null,null,null,null,null,null,null,null,null,null,null,null,null,null,"Aufschlag L/R"]
[null,null,null,null,null,null,null,null,null,null,null,null,null,null,null,null,null,null,null,null,null,null,null,null,null,null,null,null,null,null,null,null,null,null,null,null,null,null,null,null,null,null,null,null,null,null,null,null,null,null,null,null,null,null,null,null,"Punkte"]
["B",{"$f":"IF($B$10=\"\",\"\",$B$10)","v":""},null,null,null,null,null,null,null,null,null,null,null,null,null,null,null,null,null,null,null,null,null,null,null,null,null,null,null,null,null,null,null,null,null,null,null,null,null,null,null,null,null,null,null,null,null,null,null,null,null,null,null,null,null,null,"Punkte"]
[null,null,null,null,null,null,null,null,null,null,null,null,null,null,null,null,null,null,null,null,null,null,null,null,null,null,null,null,null,null,null,null,null,null,null,null,null,null,null,null,null,null,null,null,null,null,null,null,null,null,null,null,null,null,null,null,"Aufschlag L/R"]
[null,null,null,null,null,null,null,null,null,null,null,null,null,null,null,null,null,null,null,null,null,null,null,null,null,null,null,null,null,null,null,null,null,null,null,null,null,null,null,null,null,null,null,null,null,null,null,null,null,null,null,null,null,null,null,null,"Let=L / Fehler=x"]
[]
[null,null,null,null,null,null,null,null,null,null,null,null,null,null,null,null,null,null,null,null,null,null,null,null,null,null,null,null,null,null,null,null,null,null,null,null,null,null,null,null,null,null,null,null,null,null,null,null,null,null,null,null,null,null,null,null,"Let=L / Fehler=x"]
[]
["A",{"$f":"IF($B$8=\"\",\"\",$B$8)","v":"Rainer Ginzel"},null,null,null,null,null,null,null,null,null,null,null,null,null,null,null,null,null,null,null,null,null,null,null,null,null,null,null,null,null,null,null,null,null,null,null,null,null,null,null,null,null,null,null,null,null,null,null,null,null,null,null,null,null,null,"Aufschlag L/R"]
[null,null,null,null,null,null,null,null,null,null,null,null,null,null,null,null,null,null,null,null,null,null,null,null,null,null,null,null,null,null,null,null,null,null,null,null,null,null,null,null,null,null,null,null,null,null,null,null,null,null,null,null,null,null,null,null,"Punkte"]
["B",{"$f":"IF($B$10=\"\",\"\",$B$10)","v":""},null,null,null,null,null,null,null,null,null,null,null,null,null,null,null,null,null,null,null,null,null,null,null,null,null,null,null,null,null,null,null,null,null,null,null,null,null,null,null,null,null,null,null,null,null,null,null,null,null,null,null,null,null,null,"Punkte"]
[null,null,null,null,null,null,null,null,null,null,null,null,null,null,null,null,null,null,null,null,null,null,null,null,null,null,null,null,null,null,null,null,null,null,null,null,null,null,null,null,null,null,null,null,null,null,null,null,null,null,null,null,null,null,null,null,"Aufschlag L/R"]
[null,null,null,null,null,null,null,null,null,null,null,null,null,null,null,null,null,null,null,null,null,null,null,null,null,null,null,null,null,null,null,null,null,null,null,null,null,null,null,null,null,null,null,null,null,null,null,null,null,null,null,null,null,null,null,null,"Let=L / Fehler=x"]
[]
[null,null,null,null,null,null,null,null,null,null,null,null,null,null,null,null,null,null,null,null,null,null,null,null,null,null,null,null,null,null,null,null,null,null,null,null,null,null,null,null,null,null,null,null,null,null,null,null,null,null,null,null,null,null,null,null,"Let=L / Fehler=x"]
[]
["A",{"$f":"IF($B$8=\"\",\"\",$B$8)","v":"Rainer Ginzel"},null,null,null,null,null,null,null,null,null,null,null,null,null,null,null,null,null,null,null,null,null,null,null,null,null,null,null,null,null,null,null,null,null,null,null,null,null,null,null,null,null,null,null,null,null,null,null,null,null,null,null,null,null,null,"Aufschlag L/R"]
[null,null,null,null,null,null,null,null,null,null,null,null,null,null,null,null,null,null,null,null,null,null,null,null,null,null,null,null,null,null,null,null,null,null,null,null,null,null,null,null,null,null,null,null,null,null,null,null,null,null,null,null,null,null,null,null,"Punkte"]
["B",{"$f":"IF($B$10=\"\",\"\",$B$10)","v":""},null,null,null,null,null,null,null,null,null,null,null,null,null,null,null,null,null,null,null,null,null,null,null,null,null,null,null,null,null,null,null,null,null,null,null,null,null,null,null,null,null,null,null,null,null,null,null,null,null,null,null,null,null,null,"Punkte"]
[null,null,null,null,null,null,null,null,null,null,null,null,null,null,null,null,null,null,null,null,null,null,null,null,null,null,null,null,null,null,null,null,null,null,null,null,null,null,null,null,null,null,null,null,null,null,null,null,null,null,null,null,null,null,null,null,"Aufschlag L/R"]
[null,null,null,null,null,null,null,null,null,null,null,null,null,null,null,null,null,null,null,null,null,null,null,null,null,null,null,null,null,null,null,null,null,null,null,null,null,null,null,null,null,null,null,null,null,null,null,null,null,null,null,null,null,null,null,null,"Let=L / Fehler=x"]
[]
[null,null,null,null,null,null,null,null,null,null,null,null,null,null,null,null,null,null,null,null,null,null,null,null,null,null,null,null,null,null,null,null,null,null,null,null,null,null,null,null,null,null,null,null,null,null,null,null,null,null,null,null,null,null,null,null,"Let=L / Fehler=x"]
[]
["A",{"$f":"IF($B$8=\"\",\"\",$B$8)","v":"Rainer Ginzel"},null,null,null,null,null,null,null,null,null,null,null,null,null,null,null,null,null,null,null,null,null,null,null,null,null,null,null,null,null,null,null,null,null,null,null,null,null,null,null,null,null,null,null,null,null,null,null,null,null,null,null,null,null,null,"Aufschlag L/R"]
[null,null,null,null,null,null,null,null,null,null,null,null,null,null,null,null,null,null,null,null,null,null,null,null,null,null,null,null,null,null,null,null,null,null,null,null,null,null,null,null,null,null,null,null,null,null,null,null,null,null,null,null,null,null,null,null,"Punkte"]
["B",{"$f":"IF($B$10=\"\",\"\",$B$10)","v":""},null,null,null,null,null,null,null,null,null,null,null,null,null,null,null,null,null,null,null,null,null,null,null,null,null,null,null,null,null,null,null,null,null,null,null,null,null,null,null,null,null,null,null,null,null,null,null,null,null,null,null,null,null,null,"Punkte"]
[null,null,null,null,null,null,null,null,null,null,null,null,null,null,null,null,null,null,null,null,null,null,null,null,null,null,null,null,null,null,null,null,null,null,null,null,null,null,null,null,null,null,null,null,null,null,null,null,null,null,null,null,null,null,null,null,"Aufschlag L/R"]
[null,null,null,null,null,null,null,null,null,null,null,null,null,null,null,null,null,null,null,null,null,null,null,null,null,null,null,null,null,null,null,null,null,null,null,null,null,null,null,null,null,null,null,null,null,null,null,null,null,null,null,null,null,null,null,null,"Let=L / Fehler=x"]